{"text_format":"1","workbook":"xlsx","n_sheets":4,"sheets":["גיליון1","גיליון2","גיליון3","גיליון4"],"not_rendered":{"charts":0,"images":0,"macros":1,"external_links":0,"defined_names":0,"comments":0,"pivot_tables":0},"unopened":[],"bounds":{"document_bytes":16777216,"sheet_cells":100000,"rows_first":2000,"rows_last":500,"rows_between":2000,"halvings":0,"cell_chars":16384,"cell_head_chars":4096},"cells_cut":0,"cells_raw":0,"read":"whole","date_system":"1900"}

{"sheet":"גיליון1","index":0,"n_rows":16,"n_cols":3,"rows_kept":16,"cut":false,"hidden":false,"merged":[[10,2,12,2]]}
[]
[]
[]
[]
[]
[]
[]
[]
[]
[]
[null,null,{"$f":"גיליון2!DQ4","v":0}]
[]
[]
[]
[]
[null,null," "]

{"sheet":"גיליון2","index":1,"n_rows":46,"n_cols":121,"rows_kept":46,"cut":false,"hidden":false,"merged":[]}
[{"$f":"IF(A2>$A$5,0,RIGHT(גיליון1!$C$9,A2))","v":0},{"$f":"IF(B2>$A$5,0,RIGHT(גיליון1!$C$9,B2))","v":0},{"$f":"IF(C2>$A$5,0,RIGHT(גיליון1!$C$9,C2))","v":0},{"$f":"IF(D2>$A$5,0,RIGHT(גיליון1!$C$9,D2))","v":0},{"$f":"IF(E2>$A$5,0,RIGHT(גיליון1!$C$9,E2))","v":0},{"$f":"IF(F2>$A$5,0,RIGHT(גיליון1!$C$9,F2))","v":0},{"$f":"IF(G2>$A$5,0,RIGHT(גיליון1!$C$9,G2))","v":0},{"$f":"IF(H2>$A$5,0,RIGHT(גיליון1!$C$9,H2))","v":0},{"$f":"IF(I2>$A$5,0,RIGHT(גיליון1!$C$9,I2))","v":0},{"$f":"IF(J2>$A$5,0,RIGHT(גיליון1!$C$9,J2))","v":0},{"$f":"IF(K2>$A$5,0,RIGHT(גיליון1!$C$9,K2))","v":0},{"$f":"IF(L2>$A$5,0,RIGHT(גיליון1!$C$9,L2))","v":0},{"$f":"IF(M2>$A$5,0,RIGHT(גיליון1!$C$9,M2))","v":0},{"$f":"IF(N2>$A$5,0,RIGHT(גיליון1!$C$9,N2))","v":0},{"$f":"IF(O2>$A$5,0,RIGHT(גיליון1!$C$9,O2))","v":0},{"$f":"IF(P2>$A$5,0,RIGHT(גיליון1!$C$9,P2))","v":0},{"$f":"IF(Q2>$A$5,0,RIGHT(גיליון1!$C$9,Q2))","v":0},{"$f":"IF(R2>$A$5,0,RIGHT(גיליון1!$C$9,R2))","v":0},{"$f":"IF(S2>$A$5,0,RIGHT(גיליון1!$C$9,S2))","v":0},{"$f":"IF(T2>$A$5,0,RIGHT(גיליון1!$C$9,T2))","v":0},{"$f":"IF(U2>$A$5,0,RIGHT(גיליון1!$C$9,U2))","v":0},{"$f":"IF(V2>$A$5,0,RIGHT(גיליון1!$C$9,V2))","v":0},{"$f":"IF(W2>$A$5,0,RIGHT(גיליון1!$C$9,W2))","v":0},{"$f":"IF(X2>$A$5,0,RIGHT(גיליון1!$C$9,X2))","v":0},{"$f":"IF(Y2>$A$5,0,RIGHT(גיליון1!$C$9,Y2))","v":0},{"$f":"IF(Z2>$A$5,0,RIGHT(גיליון1!$C$9,Z2))","v":0},{"$f":"IF(AA2>$A$5,0,RIGHT(גיליון1!$C$9,AA2))","v":0},{"$f":"IF(AB2>$A$5,0,RIGHT(גיליון1!$C$9,AB2))","v":0},{"$f":"IF(AC2>$A$5,0,RIGHT(גיליון1!$C$9,AC2))","v":0},{"$f":"IF(AD2>$A$5,0,RIGHT(גיליון1!$C$9,AD2))","v":0},{"$f":"IF(AE2>$A$5,0,RIGHT(גיליון1!$C$9,AE2))","v":0},{"$f":"IF(AF2>$A$5,0,RIGHT(גיליון1!$C$9,AF2))","v":0},{"$f":"IF(AG2>$A$5,0,RIGHT(גיליון1!$C$9,AG2))","v":0},{"$f":"IF(AH2>$A$5,0,RIGHT(גיליון1!$C$9,AH2))","v":0},{"$f":"IF(AI2>$A$5,0,RIGHT(גיליון1!$C$9,AI2))","v":0},{"$f":"IF(AJ2>$A$5,0,RIGHT(גיליון1!$C$9,AJ2))","v":0},{"$f":"IF(AK2>$A$5,0,RIGHT(גיליון1!$C$9,AK2))","v":0},{"$f":"IF(AL2>$A$5,0,RIGHT(גיליון1!$C$9,AL2))","v":0},{"$f":"IF(AM2>$A$5,0,RIGHT(גיליון1!$C$9,AM2))","v":0},{"$f":"IF(AN2>$A$5,0,RIGHT(גיליון1!$C$9,AN2))","v":0},{"$f":"IF(AO2>$A$5,0,RIGHT(גיליון1!$C$9,AO2))","v":0},{"$f":"IF(AP2>$A$5,0,RIGHT(גיליון1!$C$9,AP2))","v":0},{"$f":"IF(AQ2>$A$5,0,RIGHT(גיליון1!$C$9,AQ2))","v":0},{"$f":"IF(AR2>$A$5,0,RIGHT(גיליון1!$C$9,AR2))","v":0},{"$f":"IF(AS2>$A$5,0,RIGHT(גיליון1!$C$9,AS2))","v":0},{"$f":"IF(AT2>$A$5,0,RIGHT(גיליון1!$C$9,AT2))","v":0},{"$f":"IF(AU2>$A$5,0,RIGHT(גיליון1!$C$9,AU2))","v":0},{"$f":"IF(AV2>$A$5,0,RIGHT(גיליון1!$C$9,AV2))","v":0},{"$f":"IF(AW2>$A$5,0,RIGHT(גיליון1!$C$9,AW2))","v":0},{"$f":"IF(AX2>$A$5,0,RIGHT(גיליון1!$C$9,AX2))","v":0},{"$f":"IF(AY2>$A$5,0,RIGHT(גיליון1!$C$9,AY2))","v":0},{"$f":"IF(AZ2>$A$5,0,RIGHT(גיליון1!$C$9,AZ2))","v":0},{"$f":"IF(BA2>$A$5,0,RIGHT(גיליון1!$C$9,BA2))","v":0},{"$f":"IF(BB2>$A$5,0,RIGHT(גיליון1!$C$9,BB2))","v":0},{"$f":"IF(BC2>$A$5,0,RIGHT(גיליון1!$C$9,BC2))","v":0},{"$f":"IF(BD2>$A$5,0,RIGHT(גיליון1!$C$9,BD2))","v":0},{"$f":"IF(BE2>$A$5,0,RIGHT(גיליון1!$C$9,BE2))","v":0},{"$f":"IF(BF2>$A$5,0,RIGHT(גיליון1!$C$9,BF2))","v":0},{"$f":"IF(BG2>$A$5,0,RIGHT(גיליון1!$C$9,BG2))","v":0},{"$f":"IF(BH2>$A$5,0,RIGHT(גיליון1!$C$9,BH2))","v":0},{"$f":"IF(BI2>$A$5,0,RIGHT(גיליון1!$C$9,BI2))","v":0},{"$f":"IF(BJ2>$A$5,0,RIGHT(גיליון1!$C$9,BJ2))","v":0},{"$f":"IF(BK2>$A$5,0,RIGHT(גיליון1!$C$9,BK2))","v":0},{"$f":"IF(BL2>$A$5,0,RIGHT(גיליון1!$C$9,BL2))","v":0},{"$f":"IF(BM2>$A$5,0,RIGHT(גיליון1!$C$9,BM2))","v":0},{"$f":"IF(BN2>$A$5,0,RIGHT(גיליון1!$C$9,BN2))","v":0},{"$f":"IF(BO2>$A$5,0,RIGHT(גיליון1!$C$9,BO2))","v":0},{"$f":"IF(BP2>$A$5,0,RIGHT(גיליון1!$C$9,BP2))","v":0},{"$f":"IF(BQ2>$A$5,0,RIGHT(גיליון1!$C$9,BQ2))","v":0},{"$f":"IF(BR2>$A$5,0,RIGHT(גיליון1!$C$9,BR2))","v":0},{"$f":"IF(BS2>$A$5,0,RIGHT(גיליון1!$C$9,BS2))","v":0},{"$f":"IF(BT2>$A$5,0,RIGHT(גיליון1!$C$9,BT2))","v":0},{"$f":"IF(BU2>$A$5,0,RIGHT(גיליון1!$C$9,BU2))","v":0},{"$f":"IF(BV2>$A$5,0,RIGHT(גיליון1!$C$9,BV2))","v":0},{"$f":"IF(BW2>$A$5,0,RIGHT(גיליון1!$C$9,BW2))","v":0},{"$f":"IF(BX2>$A$5,0,RIGHT(גיליון1!$C$9,BX2))","v":0},{"$f":"IF(BY2>$A$5,0,RIGHT(גיליון1!$C$9,BY2))","v":0},{"$f":"IF(BZ2>$A$5,0,RIGHT(גיליון1!$C$9,BZ2))","v":0},{"$f":"IF(CA2>$A$5,0,RIGHT(גיליון1!$C$9,CA2))","v":0},{"$f":"IF(CB2>$A$5,0,RIGHT(גיליון1!$C$9,CB2))","v":0},{"$f":"IF(CC2>$A$5,0,RIGHT(גיליון1!$C$9,CC2))","v":0},{"$f":"IF(CD2>$A$5,0,RIGHT(גיליון1!$C$9,CD2))","v":0},{"$f":"IF(CE2>$A$5,0,RIGHT(גיליון1!$C$9,CE2))","v":0},{"$f":"IF(CF2>$A$5,0,RIGHT(גיליון1!$C$9,CF2))","v":0},{"$f":"IF(CG2>$A$5,0,RIGHT(גיליון1!$C$9,CG2))","v":0},{"$f":"IF(CH2>$A$5,0,RIGHT(גיליון1!$C$9,CH2))","v":0},{"$f":"IF(CI2>$A$5,0,RIGHT(גיליון1!$C$9,CI2))","v":0},{"$f":"IF(CJ2>$A$5,0,RIGHT(גיליון1!$C$9,CJ2))","v":0},{"$f":"IF(CK2>$A$5,0,RIGHT(גיליון1!$C$9,CK2))","v":0},{"$f":"IF(CL2>$A$5,0,RIGHT(גיליון1!$C$9,CL2))","v":0},{"$f":"IF(CM2>$A$5,0,RIGHT(גיליון1!$C$9,CM2))","v":0},{"$f":"IF(CN2>$A$5,0,RIGHT(גיליון1!$C$9,CN2))","v":0},{"$f":"IF(CO2>$A$5,0,RIGHT(גיליון1!$C$9,CO2))","v":0},{"$f":"IF(CP2>$A$5,0,RIGHT(גיליון1!$C$9,CP2))","v":0},{"$f":"IF(CQ2>$A$5,0,RIGHT(גיליון1!$C$9,CQ2))","v":0},{"$f":"IF(CR2>$A$5,0,RIGHT(גיליון1!$C$9,CR2))","v":0},{"$f":"IF(CS2>$A$5,0,RIGHT(גיליון1!$C$9,CS2))","v":0},{"$f":"IF(CT2>$A$5,0,RIGHT(גיליון1!$C$9,CT2))","v":0},{"$f":"IF(CU2>$A$5,0,RIGHT(גיליון1!$C$9,CU2))","v":0},{"$f":"IF(CV2>$A$5,0,RIGHT(גיליון1!$C$9,CV2))","v":0},{"$f":"IF(CW2>$A$5,0,RIGHT(גיליון1!$C$9,CW2))","v":0},{"$f":"IF(CX2>$A$5,0,RIGHT(גיליון1!$C$9,CX2))","v":0},{"$f":"IF(CY2>$A$5,0,RIGHT(גיליון1!$C$9,CY2))","v":0},{"$f":"IF(CZ2>$A$5,0,RIGHT(גיליון1!$C$9,CZ2))","v":0},{"$f":"IF(DA2>$A$5,0,RIGHT(גיליון1!$C$9,DA2))","v":0},{"$f":"IF(DB2>$A$5,0,RIGHT(גיליון1!$C$9,DB2))","v":0},{"$f":"IF(DC2>$A$5,0,RIGHT(גיליון1!$C$9,DC2))","v":0},{"$f":"IF(DD2>$A$5,0,RIGHT(גיליון1!$C$9,DD2))","v":0},{"$f":"IF(DE2>$A$5,0,RIGHT(גיליון1!$C$9,DE2))","v":0},{"$f":"IF(DF2>$A$5,0,RIGHT(גיליון1!$C$9,DF2))","v":0},{"$f":"IF(DG2>$A$5,0,RIGHT(גיליון1!$C$9,DG2))","v":0},{"$f":"IF(DH2>$A$5,0,RIGHT(גיליון1!$C$9,DH2))","v":0},{"$f":"IF(DI2>$A$5,0,RIGHT(גיליון1!$C$9,DI2))","v":0},{"$f":"IF(DJ2>$A$5,0,RIGHT(גיליון1!$C$9,DJ2))","v":0},{"$f":"IF(DK2>$A$5,0,RIGHT(גיליון1!$C$9,DK2))","v":0},{"$f":"IF(DL2>$A$5,0,RIGHT(גיליון1!$C$9,DL2))","v":0},{"$f":"IF(DM2>$A$5,0,RIGHT(גיליון1!$C$9,DM2))","v":0},{"$f":"IF(DN2>$A$5,0,RIGHT(גיליון1!$C$9,DN2))","v":0},{"$f":"IF(DO2>$A$5,0,RIGHT(גיליון1!$C$9,DO2))","v":0},{"$f":"IF(DP2>$A$5,0,RIGHT(גיליון1!$C$9,DP2))","v":0}]
[1,2,3,4,5,6,7,8,9,10,11,12,13,14,15,16,17,18,19,20,21,22,23,24,25,26,27,28,29,30,31,32,33,34,35,36,37,38,39,40,41,42,43,44,45,46,47,48,49,50,51,52,53,54,55,56,57,58,59,60,61,62,63,64,65,66,67,68,69,70,71,72,73,74,75,76,77,78,79,80,81,82,83,84,85,86,87,88,89,90,91,92,93,94,95,96,97,98,99,100,101,102,103,104,105,106,107,108,109,110,111,112,113,114,115,116,117,118,119,120]
[{"$f":"LEFT(A1,1)","v":"0"},{"$f":"LEFT(B1,1)","v":"0"},"0","0","0","0","0","0","0","0","0","0","0","0","0","0","0","0","0","0","0","0","0","0","0","0","0","0","0","0","0","0","0","0","0","0","0","0","0","0","0","0","0","0","0","0","0","0","0","0","0","0","0","0","0","0","0","0","0","0","0","0","0","0","0",{"$f":"LEFT(BN1,1)","v":"0"},"0","0","0","0","0","0","0","0","0","0","0","0","0","0","0","0","0","0","0","0","0","0","0","0","0","0","0","0","0","0","0","0","0","0","0","0","0","0","0","0","0","0","0","0","0","0","0","0","0","0","0","0","0","0"]
[{"$f":"IF(A1=0,0,VLOOKUP(A3,טבלה1[],2,0))","v":0},{"$f":"IF(B1=0,0,VLOOKUP(B3,טבלה1[],2,0))","v":0},{"$f":"IF(C1=0,0,VLOOKUP(C3,טבלה1[],2,0))","v":0},{"$f":"IF(D1=0,0,VLOOKUP(D3,טבלה1[],2,0))","v":0},{"$f":"IF(E1=0,0,VLOOKUP(E3,טבלה1[],2,0))","v":0},{"$f":"IF(F1=0,0,VLOOKUP(F3,טבלה1[],2,0))","v":0},{"$f":"IF(G1=0,0,VLOOKUP(G3,טבלה1[],2,0))","v":0},{"$f":"IF(H1=0,0,VLOOKUP(H3,טבלה1[],2,0))","v":0},{"$f":"IF(I1=0,0,VLOOKUP(I3,טבלה1[],2,0))","v":0},{"$f":"IF(J1=0,0,VLOOKUP(J3,טבלה1[],2,0))","v":0},{"$f":"IF(K1=0,0,VLOOKUP(K3,טבלה1[],2,0))","v":0},{"$f":"IF(L1=0,0,VLOOKUP(L3,טבלה1[],2,0))","v":0},{"$f":"IF(M1=0,0,VLOOKUP(M3,טבלה1[],2,0))","v":0},{"$f":"IF(N1=0,0,VLOOKUP(N3,טבלה1[],2,0))","v":0},{"$f":"IF(O1=0,0,VLOOKUP(O3,טבלה1[],2,0))","v":0},{"$f":"IF(P1=0,0,VLOOKUP(P3,טבלה1[],2,0))","v":0},{"$f":"IF(Q1=0,0,VLOOKUP(Q3,טבלה1[],2,0))","v":0},{"$f":"IF(R1=0,0,VLOOKUP(R3,טבלה1[],2,0))","v":0},{"$f":"IF(S1=0,0,VLOOKUP(S3,טבלה1[],2,0))","v":0},{"$f":"IF(T1=0,0,VLOOKUP(T3,טבלה1[],2,0))","v":0},{"$f":"IF(U1=0,0,VLOOKUP(U3,טבלה1[],2,0))","v":0},{"$f":"IF(V1=0,0,VLOOKUP(V3,טבלה1[],2,0))","v":0},{"$f":"IF(W1=0,0,VLOOKUP(W3,טבלה1[],2,0))","v":0},{"$f":"IF(X1=0,0,VLOOKUP(X3,טבלה1[],2,0))","v":0},{"$f":"IF(Y1=0,0,VLOOKUP(Y3,טבלה1[],2,0))","v":0},{"$f":"IF(Z1=0,0,VLOOKUP(Z3,טבלה1[],2,0))","v":0},{"$f":"IF(AA1=0,0,VLOOKUP(AA3,טבלה1[],2,0))","v":0},{"$f":"IF(AB1=0,0,VLOOKUP(AB3,טבלה1[],2,0))","v":0},{"$f":"IF(AC1=0,0,VLOOKUP(AC3,טבלה1[],2,0))","v":0},{"$f":"IF(AD1=0,0,VLOOKUP(AD3,טבלה1[],2,0))","v":0},{"$f":"IF(AE1=0,0,VLOOKUP(AE3,טבלה1[],2,0))","v":0},{"$f":"IF(AF1=0,0,VLOOKUP(AF3,טבלה1[],2,0))","v":0},{"$f":"IF(AG1=0,0,VLOOKUP(AG3,טבלה1[],2,0))","v":0},{"$f":"IF(AH1=0,0,VLOOKUP(AH3,טבלה1[],2,0))","v":0},{"$f":"IF(AI1=0,0,VLOOKUP(AI3,טבלה1[],2,0))","v":0},{"$f":"IF(AJ1=0,0,VLOOKUP(AJ3,טבלה1[],2,0))","v":0},{"$f":"IF(AK1=0,0,VLOOKUP(AK3,טבלה1[],2,0))","v":0},{"$f":"IF(AL1=0,0,VLOOKUP(AL3,טבלה1[],2,0))","v":0},{"$f":"IF(AM1=0,0,VLOOKUP(AM3,טבלה1[],2,0))","v":0},{"$f":"IF(AN1=0,0,VLOOKUP(AN3,טבלה1[],2,0))","v":0},{"$f":"IF(AO1=0,0,VLOOKUP(AO3,טבלה1[],2,0))","v":0},{"$f":"IF(AP1=0,0,VLOOKUP(AP3,טבלה1[],2,0))","v":0},{"$f":"IF(AQ1=0,0,VLOOKUP(AQ3,טבלה1[],2,0))","v":0},{"$f":"IF(AR1=0,0,VLOOKUP(AR3,טבלה1[],2,0))","v":0},{"$f":"IF(AS1=0,0,VLOOKUP(AS3,טבלה1[],2,0))","v":0},{"$f":"IF(AT1=0,0,VLOOKUP(AT3,טבלה1[],2,0))","v":0},{"$f":"IF(AU1=0,0,VLOOKUP(AU3,טבלה1[],2,0))","v":0},{"$f":"IF(AV1=0,0,VLOOKUP(AV3,טבלה1[],2,0))","v":0},{"$f":"IF(AW1=0,0,VLOOKUP(AW3,טבלה1[],2,0))","v":0},{"$f":"IF(AX1=0,0,VLOOKUP(AX3,טבלה1[],2,0))","v":0},{"$f":"IF(AY1=0,0,VLOOKUP(AY3,טבלה1[],2,0))","v":0},{"$f":"IF(AZ1=0,0,VLOOKUP(AZ3,טבלה1[],2,0))","v":0},{"$f":"IF(BA1=0,0,VLOOKUP(BA3,טבלה1[],2,0))","v":0},{"$f":"IF(BB1=0,0,VLOOKUP(BB3,טבלה1[],2,0))","v":0},{"$f":"IF(BC1=0,0,VLOOKUP(BC3,טבלה1[],2,0))","v":0},{"$f":"IF(BD1=0,0,VLOOKUP(BD3,טבלה1[],2,0))","v":0},{"$f":"IF(BE1=0,0,VLOOKUP(BE3,טבלה1[],2,0))","v":0},{"$f":"IF(BF1=0,0,VLOOKUP(BF3,טבלה1[],2,0))","v":0},{"$f":"IF(BG1=0,0,VLOOKUP(BG3,טבלה1[],2,0))","v":0},{"$f":"IF(BH1=0,0,VLOOKUP(BH3,טבלה1[],2,0))","v":0},{"$f":"IF(BI1=0,0,VLOOKUP(BI3,טבלה1[],2,0))","v":0},{"$f":"IF(BJ1=0,0,VLOOKUP(BJ3,טבלה1[],2,0))","v":0},{"$f":"IF(BK1=0,0,VLOOKUP(BK3,טבלה1[],2,0))","v":0},{"$f":"IF(BL1=0,0,VLOOKUP(BL3,טבלה1[],2,0))","v":0},{"$f":"IF(BM1=0,0,VLOOKUP(BM3,טבלה1[],2,0))","v":0},{"$f":"IF(BN1=0,0,VLOOKUP(BN3,טבלה1[],2,0))","v":0},{"$f":"IF(BO1=0,0,VLOOKUP(BO3,טבלה1[],2,0))","v":0},{"$f":"IF(BP1=0,0,VLOOKUP(BP3,טבלה1[],2,0))","v":0},{"$f":"IF(BQ1=0,0,VLOOKUP(BQ3,טבלה1[],2,0))","v":0},{"$f":"IF(BR1=0,0,VLOOKUP(BR3,טבלה1[],2,0))","v":0},{"$f":"IF(BS1=0,0,VLOOKUP(BS3,טבלה1[],2,0))","v":0},{"$f":"IF(BT1=0,0,VLOOKUP(BT3,טבלה1[],2,0))","v":0},{"$f":"IF(BU1=0,0,VLOOKUP(BU3,טבלה1[],2,0))","v":0},{"$f":"IF(BV1=0,0,VLOOKUP(BV3,טבלה1[],2,0))","v":0},{"$f":"IF(BW1=0,0,VLOOKUP(BW3,טבלה1[],2,0))","v":0},{"$f":"IF(BX1=0,0,VLOOKUP(BX3,טבלה1[],2,0))","v":0},{"$f":"IF(BY1=0,0,VLOOKUP(BY3,טבלה1[],2,0))","v":0},{"$f":"IF(BZ1=0,0,VLOOKUP(BZ3,טבלה1[],2,0))","v":0},{"$f":"IF(CA1=0,0,VLOOKUP(CA3,טבלה1[],2,0))","v":0},{"$f":"IF(CB1=0,0,VLOOKUP(CB3,טבלה1[],2,0))","v":0},{"$f":"IF(CC1=0,0,VLOOKUP(CC3,טבלה1[],2,0))","v":0},{"$f":"IF(CD1=0,0,VLOOKUP(CD3,טבלה1[],2,0))","v":0},{"$f":"IF(CE1=0,0,VLOOKUP(CE3,טבלה1[],2,0))","v":0},{"$f":"IF(CF1=0,0,VLOOKUP(CF3,טבלה1[],2,0))","v":0},{"$f":"IF(CG1=0,0,VLOOKUP(CG3,טבלה1[],2,0))","v":0},{"$f":"IF(CH1=0,0,VLOOKUP(CH3,טבלה1[],2,0))","v":0},{"$f":"IF(CI1=0,0,VLOOKUP(CI3,טבלה1[],2,0))","v":0},{"$f":"IF(CJ1=0,0,VLOOKUP(CJ3,טבלה1[],2,0))","v":0},{"$f":"IF(CK1=0,0,VLOOKUP(CK3,טבלה1[],2,0))","v":0},{"$f":"IF(CL1=0,0,VLOOKUP(CL3,טבלה1[],2,0))","v":0},{"$f":"IF(CM1=0,0,VLOOKUP(CM3,טבלה1[],2,0))","v":0},{"$f":"IF(CN1=0,0,VLOOKUP(CN3,טבלה1[],2,0))","v":0},{"$f":"IF(CO1=0,0,VLOOKUP(CO3,טבלה1[],2,0))","v":0},{"$f":"IF(CP1=0,0,VLOOKUP(CP3,טבלה1[],2,0))","v":0},{"$f":"IF(CQ1=0,0,VLOOKUP(CQ3,טבלה1[],2,0))","v":0},{"$f":"IF(CR1=0,0,VLOOKUP(CR3,טבלה1[],2,0))","v":0},{"$f":"IF(CS1=0,0,VLOOKUP(CS3,טבלה1[],2,0))","v":0},{"$f":"IF(CT1=0,0,VLOOKUP(CT3,טבלה1[],2,0))","v":0},{"$f":"IF(CU1=0,0,VLOOKUP(CU3,טבלה1[],2,0))","v":0},{"$f":"IF(CV1=0,0,VLOOKUP(CV3,טבלה1[],2,0))","v":0},{"$f":"IF(CW1=0,0,VLOOKUP(CW3,טבלה1[],2,0))","v":0},{"$f":"IF(CX1=0,0,VLOOKUP(CX3,טבלה1[],2,0))","v":0},{"$f":"IF(CY1=0,0,VLOOKUP(CY3,טבלה1[],2,0))","v":0},{"$f":"IF(CZ1=0,0,VLOOKUP(CZ3,טבלה1[],2,0))","v":0},{"$f":"IF(DA1=0,0,VLOOKUP(DA3,טבלה1[],2,0))","v":0},{"$f":"IF(DB1=0,0,VLOOKUP(DB3,טבלה1[],2,0))","v":0},{"$f":"IF(DC1=0,0,VLOOKUP(DC3,טבלה1[],2,0))","v":0},{"$f":"IF(DD1=0,0,VLOOKUP(DD3,טבלה1[],2,0))","v":0},{"$f":"IF(DE1=0,0,VLOOKUP(DE3,טבלה1[],2,0))","v":0},{"$f":"IF(DF1=0,0,VLOOKUP(DF3,טבלה1[],2,0))","v":0},{"$f":"IF(DG1=0,0,VLOOKUP(DG3,טבלה1[],2,0))","v":0},{"$f":"IF(DH1=0,0,VLOOKUP(DH3,טבלה1[],2,0))","v":0},{"$f":"IF(DI1=0,0,VLOOKUP(DI3,טבלה1[],2,0))","v":0},{"$f":"IF(DJ1=0,0,VLOOKUP(DJ3,טבלה1[],2,0))","v":0},{"$f":"IF(DK1=0,0,VLOOKUP(DK3,טבלה1[],2,0))","v":0},{"$f":"IF(DL1=0,0,VLOOKUP(DL3,טבלה1[],2,0))","v":0},{"$f":"IF(DM1=0,0,VLOOKUP(DM3,טבלה1[],2,0))","v":0},{"$f":"IF(DN1=0,0,VLOOKUP(DN3,טבלה1[],2,0))","v":0},{"$f":"IF(DO1=0,0,VLOOKUP(DO3,טבלה1[],2,0))","v":0},{"$f":"IF(DP1=0,0,VLOOKUP(DP3,טבלה1[],2,0))","v":0},{"$f":"SUM(A4:DP4)","v":0}]
[{"$f":"LEN(גיליון1!C9)","v":0}]
[]
[]
[null,"עמודה1","עמודה2"]
[null,"א",1]
[null,"ב",2]
[null,"ג",3]
[null,"ד",4]
[null,"ה",5]
[null,"ו",6]
[null,"ז",7]
[null,"ח",8]
[null,"ט",9]
[null,"י",10]
[null,"כ",20]
[null,"ל",30]
[null,"מ",40]
[null,"נ",50]
[null,"ס",60]
[null,"ע",70]
[null,"פ",80]
[null,"צ",90]
[null,"ק",100]
[null,"ר",200]
[null,"ש",300]
[null,"ת",400]
[null," ",0]
[null,"ם",40]
[null,"ף",80]
[null,"ך",20]
[null,"ץ",90]
[null,"ן",50]
[null,"\"",0]
[null,"",0]
[null,".",0]
[null,",",0]
[null,"?",0]
[null,"(",0]
[null,"!",0]
[null,")",0]
[null,null,0]
[null,"-"]

{"sheet":"גיליון3","index":2,"n_rows":1545,"n_cols":3,"rows_kept":1545,"cut":false,"hidden":false,"merged":[]}
[580,"טובים השנים מן האחד ",1545]
[1533,"טוב ציפור אחת ביד משנים על העץ"]
[1215,"התפוח לא נופל רחוק מהעץ"]
[1209,"התפוח לא נפל רחוק מהעץ"]
[693,"לא אלמן ישראל"]
[940,"אשת חיל מי ימצא"]
[475,"אבד חסיד מן הארץ"]
[410,"מודה ועוזב ירוחם"]
[344,"לא יהיה כלום כי אין כלום"]
[2490,"על תאמר לכשאפנה אשנה שמא לא תפנה"]
[1335,"אין ילד רע יש ילד שרע לו"]
[330,"מלו צדיקים"]
[842,"מלו צדיקים שבדור"]
[857,"החפץ חיים של דורינו"]
[796,"החפץ חיים של הדור"]
[2907,"על תדחה למחר מה שאפשר לדחות למחרתיים"]
[385,"מה שהיה היה"]
[1606,"נבל ברשות התורה"]
[1770,"ארץ ישראל נקנית ביסורים"]
[2002,"מי שמכוון לכלום תמיד יקלע למטרה"]
[1996,"מי שמכון שלום דבר תמיד יקלע למטרה"]
[1996,"מי שמכון לשום דבר תמיד יקלע למטרה"]
[1101,"חייך נתנו לך במתנה"]
[1570,"לגימטריה אין שום משמעות"]
[495,"חמס זה דאעש"]
[496,"חמאס זה דאעש"]
[496,"חמאס הוא דאעש"]
[663,"אין ערבים אין פיגועים"]
[663,"פושעי אוסלו לדין"]
[340,"בגץ מסכן יהודים"]
[683,"בנימין נתניהו"]
[420,"צרציל"]
[1504,"מפטרים היום את המחבל של מחר"]
[900,"הבל הבלים אמר קהלת"]
[818,"שטיות והבלים"]
[541,"נ נח נחמן נחמן מאומן"]
[1390,"הסתכלת הים לשמים"]
[937,"רפורמה עכשיו"]
[1995,"העם דורש רפורמה משפטית"]
[405,"דמוקרטיה או ביבי"]
[293,"אם אין אני לי מי לי "]
[1026,"אם אין אני לי מי לי וכשאני לעצמי מה אני"]
[1417,"מה הקשר בירה נשר"]
[162,"אנטיוכוס"]
[737,"אנטיוכוס הרשע"]
[670,"המן הרשע"]
[693,"המן האגגי צורר היהודים"]
[657,"השומר אחי אנוכי"]
[1348,"איש לרעהו יעזורו ולאחיו יאמר חזק"]
[831,"הרבה בריאות"]
[619," בריאות"]
[990," בריאות ברכה והצלחה"]
[371," ברכה והצלחה"]
[13,"בוה"]
[612,"יהרג ועל יעבור"]
[45,"גאולה"]
[764,"משיח עכשיו"]
[948,"חמורו של משיח"]
[848,"משיח בפתח"]
[177,"גן עדן"]
[413,"לא כל הנוצץ יהלום "]
[336,"לא כל הנוצץ זהב"]
[439,"בני חיי ומזוני רווחי"]
[1217,"אין דבר שלם מלב שבור"]
[214,"ניצחון"]
[412,"כל ערבי מחבל"]
[698,"כל ערבי מחבל פוטנציאלי"]
[690,"כל ערבי מחבל בפוטנציאל"]
[702,"כל ערבי  הוא מחבל בפוטנציאל"]
[704,"עצת אחיטופל"]
[310,"נימרוד"]
[355,"פרעה"]
[1041,"עשר המכות"]
[330,"סנחריב"]
[268,"גוי גמור"]
[1189,"נבלות וטרפות"]
[293,"דור המבול"]
[870,"תיבת נח"]
[1628,"נוח אם שבע שגיות כתיב"]
[422,"עבד עבדים יהיה כנען"]
[955,"עשיו שונא ליעקב"]
[954,"הקול קול יעקב והידיים ידי עשיו"]
[150,"ידו בכל ויד כל בו"]
[150,"ידו בכל ויד כל בו"]
[600," ישמעל ידו בכל ויד כל בו"]
[608,"תרח"]
[869,"תרח אבי אברהם"]
[317,"אברהם אבינו"]
[277,"יצחק אבינו"]
[251,"יעקב אבינו"]
[68,"חכם "]
[399,"טיפש"]
[366,"ערמומי"]
[451,"לך לך מארצך"]
[451,"לך לך מארצך"]
[368,"סדום ואמורה"]
[564,"מידת סדום"]
[1128,"להרוג צדיק עם רשע"]
[82,"עזה"]
[45,"לוט "]
[45,"לוט "]
[792,"עקידת יצחק"]
[1420,"גרש את בן האמה הזאת"]
[508,"גוש קטיף"]
[654," פינו גוש קטיף"]
[669,"עם ישראל חי"]
[453,"מלך המשיח"]
[972,"האחדות תנצח"]
[587,"כוחינו באחדותינו"]
[622,"שרה אימינו"]
[612,"שרה אמינו"]
[2613,"כמו שאין גמל כשר או שפן מסונן כך אין אינטרנט כשר"]
[2826,"כמו שאין גמל כשר או שפן מסונן כך אין אינטרנט כשר או מסונן"]
[318,"סולם יעקב"]
[826,"מכירת יוסף"]
[666,"שכם בן חמור"]
[1455,"נבלה נעשתה בישראל"]
[254,"עוד יוסף חי"]
[240,"זה קנה חכמה"]
[254,"עוד יוסף חי"]
[1085,"ערבי גבר זה ערבי בקבר"]
[861,"בית המקדש"]
[655,"מהפכת סדום"]
[931,"ימציאת מצרים"]
[891,"יציאת מצרים"]
[613,"משה ואהרון"]
[445,"שמואל הנביא"]
[890,"מערת המכפלה"]
[788,"הכותל המערבי"]
[783,"כותל המערבי"]
[796,"בור סוד שאינו מאבד טיפה"]
[374,"דמוקרטיה"]
[259,"חוצפא יסגא"]
[372,"כלב שוטה"]
[695,"עני המהפך בחררה"]
[1625,"תלמיד חכם שאין בו דעת נבילה טובה הימנו"]
[2304,"פשוט נבילה בשוק ואל תצטרך לבריות"]
[655,"העישון הורג"]
[777,"גפרית ומלח"]
[751,"מגלגלים זכות על ידי זכאי"]
[331,"מגלגלים חובה על ידי חייב"]
[1349,"מחשבה טובה הקבה מצרפה למעשה"]
[825,"שלוחי מצווה אינם ניזוקים"]
[473,"גלות בבל"]
[1337,"שערי דמעות לא ננעלו"]
[452,"שטייגען"]
[841,"גימטריה זה שום דבר"]
[385,"גימטריה זה כלום"]
[1348,"איש לרעהו יעזורו ולאחיו יאמר חזק"]
[741,"כל העולם כפר גלובלי קטן"]
[621,"מליארד סינים לא טועים"]
[631,"מיליארד סינים לא טועים"]
[85,"גו ביידן"]
[424,"דונלד טראמפ"]
[855,"חרבות ברזל"]
[657,"צוק איתן"]
[784,"פקוד פקדתי"]
[70,"גוג ומגוג"]
[588,"מלחמת גוג ומגוג"]
[967,"עופרת יצוקה"]
[1477,"גרש את העצבות"]
[724,"אין שום יאוש"]
[872,"אין שום יאוש בעולם"]
[952,"אין שום יאוש בעולם כלל"]
[141,"חיוך מביא חיוך"]
[67,"אלול"]
[606,"פלצות"]
[866,"אפילו דגים שבים רועדים"]
[904,"דורו של משיח"]
[581,"גואל ישראל"]
[147,"זמן הגאולה"]
[611,"הנורמלי האחרון"]
[462,"משוגע גדול"]
[1047,"הגרוייסע משיגינער"]
[420,"פישל"]
[317,"השואה"]
[191,"נאצים"]
[324,"רק ביבי"]
[355,"רק לא ביבי"]
[74,"ביבי לך"]
[1045,"מדינת ישראל"]
[706,"ארץ הקודש"]
[666,"מאה שערים"]
[832,"ארץ ישראל"]
[431,"צאלמער"]
[51,"אייזבאך"]
[829,"סיפורי סבתא"]
[2593,"כל ספרדי פרנעק כל פרענק ערבי כל ערבי מחבל כל מחבל שאיד "]
[432,"שאול המלך"]
[470,"שלמה המלך"]
[442,"היכל שמואל"]
[585,"זה לא משחק ילדים"]
[191,"אקסל"]
[834,"פרס נובל לשלום"]
[732,"צבא ההגנה לישראל"]
[125,"צהל"]
[450,"איינשטיין"]
[1074,"תרבות יון"]
[364,"בני ברק"]
[598,"עכברוש"]
[739,"עיר החולדות"]
[519,"עיניים להם ולא יראו"]
[643,"עיניים להם ולא יראו אוזניים"]
[1203,"אם בארזים נפלה שלהבת"]
[1854,"אם בארזים נפלה שלהבת אז מה יאמרו אזובי הקיר"]
[1846,"אם בארזים נפלה שלהבת מה יאמרו אזובי הקיר"]
[147,"לימודי ליבה"]
[1009,"הדרת נשים"]
[756,"איתך בכל רגע"]
[716,"פצצת אטום"]
[1191,"פצצת ביקוע גריעני"]
[1018,"פצצה גריעינית"]
[56,"אטום"]
[292,"כור אטומי"]
[1705,"פצצה מתקתקת"]
[1533,"הררים התלויים בשערה"]
[734,"רעידת אדמה"]
[197,"צונאמי"]
[371,"הוריקן"]
[917,"סופת הוריקן"]
[822,"מסתערבים"]
[1156,"האש שלי תוקד"]
[1943," ועליך אמרתי האש שלי תוקד"]
[2793," ועליך אמרתי האש שלי תוקד עד ביאת המשיח"]
[1057,"לא לחינם הלך הזרזיר אצל העורב"]
[752,"קול ערב כמו עורב"]
[154,"אחד אפס"]
[83,"חזבאללה"]
[93,"חיזבאללה"]
[186,"מוסלמי"]
[499,"החיים הם לא פיקניק"]
[435,"החיים זה פיקניק"]
[415,"טרור"]
[494,"טרוריסט"]
[508,"הסנדלר הולך יחף"]
[896," בנו של הסנדלר הולך יחף"]
[640,"מלחמה על הבית"]
[251,"אדמור"]
[306,"ברדק"]
[637,"איי חרבות"]
[643,"איי חורבות"]
[290,"עמוד ענן"]
[1199,"מלחמת העצמעות"]
[1236,"מלחמת העולם הראשונה"]
[1039,"מלחמת העולם השניה"]
[1940,"אל תסתכל בקנקן אלא במה שיש בו"]
[2366,"אל תסתכל בקנקן אלא במה שיש בתוכו"]
[743,"ראשון לציון"]
[748,"הראשון לציון"]
[933,"מלחמת המפרץ"]
[1947,"אל תסתכל בזקנקן אלא במה שיש בו"]
[2373,"אל תסתכל בזקנקן אלא במה שיש בתוכו"]
[273,"פייק ניוז"]
[200,"פייק"]
[1549,"תוכנת הגמטריות"]
[242,"חבל על הזמן"]
[2000,"ארצות הברית של אמריקה"]
[1314,"ארצות הברית "]
[208,"ארהב"]
[568,"זמן שוה כסף"]
[1597,"סבלנות לא קונים בשום חנות"]
[749,"כיפת ברזל"]
[704,"הר הבית בידינו"]
[1623,"מלחמת ששת הימים"]
[538,"העיקר לא לפחד"]
[618,"העיקר לא לפחד כלל"]
[994,"כל העולם גשר צר"]
[1056,"כל העולם כולו גשר צר"]
[945,"מלחמת יום הכיפורים"]
[2032,"תגיד לי מה יותר מתוק מדף גמרא"]
[483,"גפת"]
[240,"עמלק"]
[732,"עכבר מת"]
[328,"אפס מאופס"]
[280,"כוחי ועוצם ידי"]
[465,"שבאבניק"]
[629,"הכל בגלל מחשב קטן"]
[350,"מחשב"]
[1210,"ישיבת פרובר"]
[780,"תחשוב טוב יהיה טוב"]
[756,"העולם הזה דומה לפרוזדור"]
[440,"הכל מהשם"]
[107,"הכל לטובה"]
[597,"מה שנכון נכון"]
[]
[]
[419,"אבא תודה"]
[419,"אבא תודה"]
[586,"שלום חבר"]
[1247,"מלחמת השיחרור"]
[1130,"מלחמת העצמאות"]
[1226,"מלחמת תשח"]
[1373,"מלחמת חרבות ברזל"]
[103,"אוסלו"]
[859,"מבצע צוק איתן"]
[91,"אמן"]
[1169,"מבצע עופרת יצוקה"]
[1011,"שומר החומות"]
[399,"מבצע מגן וחץ"]
[999,"לא בוכים על חלב שנשפך"]
[1040,"אוי לרשע אוי לשכנו"]
[1046,"אוי לרשע ואוי לשכנו"]
[552,"אחרון אחרון חביב"]
[531,"מי אמר אני ולא קיבל"]
[1709,"רבות מחשבות בלב איש"]
[2842,"רבות מחשבות בלב איש ועצת ה היא תקום"]
[194,"כח עליון"]
[1072,"הכל מהשם יתברך"]
[521,"הכסיל בחושך ילך"]
[1162,"יאוש שלא מדעת"]
[831,"יאוש מדעת"]
[1124,"נותנים לך תיקח"]
[2312,"קמת בבוקר תגיד תודה השאר בונוס"]
[207,"אדם המזיק"]
[737,"אריכות ימים"]
[499,"גאון שיגעון"]
[628,"כמה קטן ככה שטן"]
[850,"גובה עצום שכל בצימצום"]
[176,"אין כמו במבה"]
[2445,"לכלכת לא נורה אתה לא מלאך לא נקית אתה לא בן אדם"]
[2420,"לכלכת לא נורה אתה בן אדם לא נקית אתה לא בן אדם"]
[688,"כל קבוע כמחצה על מחצה דמי"]
[296,"רובו ככולו"]
[1483,"כל דפריש מרובא פריש"]
[183,"מילה זו מילה"]
[483,"מילה זו רק מילה"]
[680,"מילה זו מילה ולא מעשים"]
[980,"מילה זו רק מילה ולא מעשים"]
[1224,"השקט שלפני הסערה"]
[1273,"השקט שאחרי הסערה"]
[811,"שמע בני מוסר אביך"]
[2237,"מכות עוברות מילים נשארות"]
[1087,"מילים נשארות"]
[978,"מקושיא לא מתים"]
[982,"מקושיה לא מתים"]
[2076,"החכם יודע לא להיכנס לבעיות שהפקח יודע לצאת מהם"]
[824,"חוכמה זה להכיר בגאונות"]
[989,"לשון הרע לא מדבר אליי"]
[1037,"לא ניתנה נבואה אלא לשוטים"]
[1252,"לא ניתנה נבואה אלא לשוטים וקטנים"]
[567,"ישראל בטח בה"]
[907,"ישראל בטח בהשם"]
[559,"אנחנו מאמינים בני מאמינים"]
[2222,"אנחנו מאמינים בני מאמינים ואין לנו על מי להישען אלא על אבינו שבשבמים"]
[1225,"אנחנו רוצים משיח עכשיו"]
[725,"עשה לך רק"]
[415,"קנה לך חבר"]
[1677,"אחד מאלף מצאתי ואשה בכל אלה לא מצאתי"]
[408,"הוי עז כנמר"]
[1215,"צדקה תציל ממות"]
[581,"טוב כלב חבר מחבר כלב"]
[1286,"מתלמידי יותר מכולם"]
[1599,"ועשית ככל אשר יורוך"]
[2565,"ושמרת לעשות ככל אשר יורוך"]
[1108,"חמירא סכנתא מאיסורא"]
[657,"כל מאן דעביד רחמנא לטב עביד"]
[480,"אלה ברכב ואלה בסוסים"]
[1320,"אמור לי מי חברך ואמר לך מי אתה"]
[435,"גלגל חוזר בעולם"]
[335,"חכם עדיף מנביא"]
[320,"מאמא רחל"]
[535,"מומר לדבר אחד"]
[1578,"מומר לדבר אחד מומר לכל התורה כולה"]
[785,"מומר לתיאבון "]
[785,"מומר לתיאבון "]
[1041,"מומר האוכל נבילות להכעיס"]
[1594,"קרקפתא דלא מנח תפילין"]
[819,"עד זומם למפרע הוא נפסל"]
[1290,"איזהו גיבור הכובש את יצרו"]
[1056,"אל יתהלל חכם בחוכמתו"]
[1346,"אל יתהלל גיבור בגבורתו"]
[1670,"אל יתהלל עשיר בעושרו"]
[1280,"כבשה אחת בין שבעים זאבים"]
[582,"וגר זאב אם כבש"]
[2026,"וחתתו חרבותם לעתים"]
[421,"נכנס יין יצא סוד"]
[1052,"ארץ זבת חלב ודבש"]
[343,"והבדילנו מן הטועים"]
[2382," והבדילנו מן הטועים ונתן לנו תורת אמת"]
[284,"אין כאלוקינו"]
[528,"מושב ליצים"]
[600,"כת ליצים"]
[658,"כת חנפנים"]
[1471,"כת מספרי לשון הרע"]
[513,"סערה בכוס מים"]
[1337,"שערי דמעות לא ננעלו"]
[1070,"לא בשוקי האיש ירצה"]
[840,"אין המלך נושע ברוב חיל"]
[369,"פגע וברח"]
[404,"הציץ ונפגע"]
[932,"התמונה להמחשה בלבד"]
[401,"לך אל הנמלה עצל"]
[902,"עזות דקדושה"]
[418,"קנאים פוגעים בו"]
[428,"קנאים פוגעין בו"]
[668,"ליצנותא דעז"]
[890,"ליצנותא דעבודה זרה"]
[769,"אבא מסתכל מלמעלה"]
[763,"פילא בקופא דמחתא"]
[1854,"פיתחו לי פתח כחודו של מחת"]
[1205,"מעוות לא יוכל לתקון"]
[687,"מרבה נכסים מרבה דאגה"]
[875,"יוסיף דעת יוסיף מכאוב"]
[984,"מה יתרון לאדם בכל עמלו"]
[2893,"מה יתרון לאדם בכל עמלו שיעמול תחת השמש"]
[910,"ומותר האדם מן הבהמה אין"]
[988,"הכל הבל ורעות רוח"]
[723,"חכם עיניו בראשו"]
[728,"החכם עיניו בראשו"]
[1943,"לך אכול בשמחה לחמך כי כבר רצה ה את מעשך"]
[707,"מה שהיה הוא שיהיה"]
[817,"שקר החן והבל היופי"]
[718,"טוב ילד מסכן וחכם ממלך זקן וכסיל"]
[1932,"מלך פורץ גדר לעשות לו דרך ואין מוחים בידו"]
[633,"חתן דומה למלך"]
[1911,"כאשר תידור תשלם"]
[1169,"טוב אשר לא תידור"]
[3137,"טוב אשר לא תידור מאשר תידור ולא תשלם"]
[1093,"עם תרוצים לא קונים"]
[2631,"טוב לכת אל בית האבל מלכת אל בית המשתה"]
[862,"אל תהי צדיק הרבה"]
[1703,"שלח לחמך על פני המים כי ברוב הימים תמצאנו"]
[867,"סוף דבר הכל נשמע"]
[723,"לב חכם בימינו וכסיל בשמאלו"]
[1440,"דברי צדיקים בנחת נשמעים"]
[1601,"כי אין אדם צדיק בארץ אשר יעשה טוב ולא יחטא"]
[72,"חסד"]
[764,"מעז יצא מתוק"]
[848,"עד החתונה זה יעבור"]
[347,"לא חשוב"]
[354,"שדים"]
[1026,"אפנים וחיות הקודש"]
[338,"לבן הארמי"]
[298,"רחמים"]
[195,"מידה כנגד מידה"]
[174,"טוב ומיטיב לכל"]
[316,"מוסרי"]
[2673,"כי לקח טוב נתתי לכם תורתי אל תעזובו"]
[689,"אורו של עולם"]
[96,"זיווג הגון"]
[816,"שמחת חיים"]
[174,"חיי עולם"]
[1007,"שירת הלווים"]
[353,"גשמי"]
[274,"רוחני"]
[255,"מהודר"]
[259,"הדרן"]
[359,"נט פריי"]
[246,"אדמה לעליון"]
[335,"הר סיני"]
[264,"סדר"]
[430,"אבא של כולם"]
[724,"הוא שומר עלינו"]
[1091,"רבנן לא בעי נטירותא"]
[898,"עזות דקדושא"]
[896,"סיעתא דשמיא"]
[1001,"יראת שמים"]
[470,"תנך"]
[611,"תורה"]
[113,"נביאים"]
[478,"כתובים"]
[1098,"תורה שבעל פה"]
[155,"לקח טוב"]
[318,"בני אהרן"]
[763,"ישראל מעל המזל"]
[979,"לשון הרע לא מדבר אלי"]
[1023,"צוחק מי שצוחק אחרון"]
[82,"חסיד"]
[132,"חסידים"]
[1225,"לפנים משורת הדין"]
[516,"אהבת חינם"]
[1039,"אוהב את הבריאות"]
[2078,"אוהב את הבריאות ומקרבן לתורה"]
[936,"חוזר בתשובה"]
[116,"מודה אני"]
[794,"אין מים אלא תורה"]
[1086,"אז תבין יראת ה"]
[1123,"רבן של ישראל"]
[510,"רשי"]
[244,"גמרא"]
[202,"בני מלכים"]
[472,"בן של מלך"]
[415,"קדושה"]
[219,"טהרה"]
[252,"לב טהור"]
[217,"ענני הכבוד"]
[377,"שנה טובה"]
[229,"דרך ה"]
[756,"חשבון שמים"]
[845,"הסתר פנים"]
[686,"ובחרת בחיים"]
[1282,"שויתי ה לנגדי תמיד"]
[91,"מלאך"]
[204,"צדיק"]
[198,"פיקח"]
[1385,"שומר נפשו ירחק מהם"]
[224,"עיני העדה"]
[379,"סנהדרין"]
[424,"מהסנהדרין"]
[251,"זקני העדה"]
[1161,"דברים העומדים ברומו של עולם"]
[728,"רומו של עולם"]
[611,"יקרה היא מפנינים"]
[3027,"כמן שאין גמל כשר או שפן מסונן כך אין אינטרנט כשר או אייפון מסונן"]
[2983,"כמו שאין גמל כשר או שפן מסונן כך אין אינטרנט כשר או אייפון מסונן"]
[220,"יחד ננצח"]
[222,"ביחד ננצח"]
[126,"עיליו"]
[176,"מסוכן"]
[248,"מצחיק"]
[435,"מטופש"]
[543,"מרגש"]
[109,"חמאס"]
[1038,"פקוד יפקוד אלוקים אתכם"]
[1188,"וימצא בשנה ההיא מאב שערים"]
[752,"עלי קללתך בני"]
[510,"ויעקבני זה פעמיים"]
[736,"ויחלום והנה סולם מוצב ארצה"]
[1772,"ויחלום והנה סולם מוצב ארצה וראשו מגיע השמימה"]
[1289,"ופרצת ימה וקדמה וצפונה ונגבה"]
[591,"אכן יש ה במקום הזה"]
[510,"מה נורא המקום הזה"]
[831,"ברחל בתך הקטנה"]
[617,"הפעם אודה את ה"]
[618,"הפעם ילוה אליי אישי"]
[1140,"כי מכרנו ויאכל גם אכול את כספינו"]
[1130,"כי מכרנו ויאכל גם אכול את כספנו"]
[1961,"השמרלך פן תדבר אם יעקב מטוב ועד רע"]
[854,"והיה המחנה הנשאר לפליטה"]
[1328,"קטנתי מכל החסדים ומכל האמת "]
[3106,"קטנתי מכל החסדים ומכל האמת אשר עשית את עבדך"]
[1581,"כי במקלי עברתי את הירדן הזה"]
[3735,"כי במקלי עברתי את הירדן הזה עתה הייתי לשתי מחנות"]
[430,"אבא של כולם"]
[430,"צדיק יסוד עולם"]
[59,"יבוא גואל"]
[227,"מכל זבוב פיל"]
[919,"פיל בחנות חרסינה"]
[382,"דיבורים כמו חול"]
[894,"שמור מרחק"]
[776,"המלוכה והממשלה לחי עולמים"]
[601,"תן חיוך הכל לטובה"]
[270,"הכל מלמעלה"]
[683,"עד חצי המלכות"]
[67,"כל טוב"]
[1228,"עין רואה ואוזן שומעת"]
[2588,"עין רואה ואוזן שומעת וכל מעשיך בספר נכתבים"]
[185,"אני לדודי ודודי לי"]
[1554,"מדבר שקר תרחק"]
[933,"מוות וחיים ביד הלשון"]
[185,"עזעזאל"]
[512,"פיו וליבו שווים"]
[573,"אין פיו וליבו שווים"]
[1558,"והחוט המשולש לא במהרה ינתק"]
[570,"בוחן כליות ולב"]
[102,"טוב ה לכל"]
[574,"אל תבטחו בנדיבים"]
[1857,"אל תבטחו בנדיבים ובבן אדם שאין לו תשועה"]
[107,"מגן דוד"]
[51,"גמח"]
[65,"מזוזה"]
[406,"עם הארץ"]
[1161,"איש תם יושב אוהלים"]
[552,"תלמיד חכם"]
[641,"צורבא מרבנן"]
[1495,"בזכות נשים צדקניות "]
[2126,"בזכות נשים צדקניות נגאלו ישראל "]
[334,"סגי נהור"]
[1030,"דמעות תנין"]
[138,"חיבוק דוב"]
[1245,"ואתה אמרת היטב היטיב עמך"]
[846,"ויותר יעקב לבדו"]
[1392,"ויותר יעקב לבדו ויאבק איש עמו"]
[1392,"הילדים אשר חנן אלוקים את עבדך"]
[1066,"כתונת פסים"]
[711,"זבולון לחוף ימים ישכון"]
[1327,"יששכר חמור גרם"]
[373,"וירא מנוחה כי טוב"]
[1271,"וירא מנוחה כי טוב ואת הארץ כי נעמה"]
[554,"אלוקים חשבה לטובה"]
[688,"והבור ריק אין בו מים"]
[977,"מה בצע כי נהרוג את אחינו"]
[353,"הילד איננו ואני אנה אני בא"]
[734,"טרף טרף יוסף"]
[1315,"מה פרצת עליך פרץ"]
[701,"מדוע פניכם רעים היום"]
[1003,"לאלוקים פתרונים"]
[1217,"כי גנב גנבתי מרץ העבריים"]
[828,"את חטאי אני מזכיר היום"]
[722,"ויקראו לפניו אברך"]
[818,"ויכר יוסף את אחיו"]
[1152,"ויכר יוסף את אחיו והם לא הכירוהו"]
[1866,"אלוקי אביכם נתן לכם באמתחתכם מטמון"]
[952,"האלוקים מצא את עוון עבדך"]
[1141,"כי עבדך ערב את הנער הזה"]
[1080,"כי איך אעלה אל אבי והנער איננו איתי"]
[1926,"המלאך הגואל אותי מכל רע יברך את הנערים"]
[1339,"שימך אלוקים כאפריים וכמנשה"]
[1669,"שימך אלוקים כשרה רבקה רחל ולאה"]
[1489,"ואני נתתי לך שכם אחד על אחיך"]
[2405,"אשר לקחתי מיד האמורי בחרבי ובקשתי"]
[577,"שמעון ולוי אחים"]
[678,"כי באפם הרגו איש"]
[455,"גור אריה יהודה"]
[813,"כרע רבץ כארי"]
[1148,"כרע רבץ כארי וכלביא מי יקימנו"]
[1303,"בראשית ברא אלוקים"]
[436,"תהו ובוהו"]
[238,"ויהי אור"]
[451,"וירא אלוקים כי טוב"]
[500,"פרו  ורבו"]
[639,"עץ הדעת"]
[360,"עזר כנגדו"]
[610,"קוץ ודרדר"]
[694,"צדיק תמים"]
[510,"כי מלאה הארץ חמס"]
[735,"כי מלאה הארץ חמס מפניהם"]
[1007,"שופך דם האדם באדם דמו ישפך"]
[2243,"את קשתי נתתי בענן"]
[1403,"והיתה הקשת בענן"]
[1019,"ארור כנען עבד עבדים יהיה כנען"]
[422,"עבד עבדים יהיה כנען"]
[111,"מגדל בבל"]
[1018,"ויפץ ה אותם משם "]
[1604,"ויפץ ה אותם משם על פני כל הארץ"]
[451,"לך לך מארצך"]
[1488,"לך לך מארצך וממולדתך ומבית אביך"]
[1412,"ובן שמונת ימים הימול לכם כל זכר"]
[1210,"הנושך יקבי סוס ויפול רוכבו אחור"]
[1367,"לישועתך קויתי ה"]
[1020,"מאשר שמנה לחמו "]
[1762,"מאשר שמנה לחמו והוא יתן מעדני מלך"]
[819,"מחוט ועד שרוך נעל"]
[326,"פרא אדם"]
[476,"פרא אדם ידו בכל ויד כל בו"]
[377,"היפלא מה דבר"]
[1446,"האף תספה צדיק אם רשע"]
[982,"מהפכת סדום ועמורה"]
[651,"ותהי נציב מלח"]
[1364,"רק אין יראת אלוקים במקום הזה"]
[1863,"וה פקד את שרה כאשר אמר"]
[1030,"גרש האמה הזאת ובנה"]
[962,"והאלוקים נסה את אברהם"]
[1159,"אל תשלח ידך אל הנער"]
[516,"ואברהם זקן בא בימים"]
[262,"זקן בא בימים"]
[1293,"שתה וגם לגמליך אשקה"]
[970,"ויצא יצחק לשוח בשדה"]
[1218,"השדה אשר קנה אברהם"]
[2129,"השדה אשר קנה אברהם מאת בני חת"]
[1310,"ארבע מאות שקל כסף"]
[512,"שני גויים בבטנך"]
[1495,"שני גויים בבטנך ושני לאומים ממעייך יפרדו"]
[670,"ורב יעבוד צעיר"]
[454,"העליטני נא מן האדום האדום הזה"]
[965,"נפתלי אילה שלוחה"]
[894,"בן פורת יוסף"]
[973,"בן פורת עלה עין"]
[1867,"בן פורת יוסף בן פורת עלה עין"]
[1401,"תלמידי חכמים לא בעי נטירותא"]
[1257,"שוא שקד שומר"]
[1479,"מערכת כיפת ברזל"]
[580,"אדון הסליחות"]
[367,"קורונה"]
[649,"קורונה וירוס"]
[654,"וירוס הקורונה"]
[155,"פוטין"]
[986,"בנפול אויבך אל תשמח"]
[1262,"הלומד ילד למה הוא דומה לדיו כתובה על נייר חלק"]
[1516,"הקנאה התאווה והכבוד מוציאים את האדם מן העולם"]
[856,"על כרכך אתה נולד"]
[629,"הוו מתונים בדין"]
[1100,"עשו סייג לתורה"]
[1268,"על שלושה דברים העולם עומד"]
[3102,"על תהיו כעבדים המשמשים את הרב על מנת לקבל פרס"]
[1097,"יהי ביתך בית ועד לחכמים"]
[2899,"על שלושה דברים העולם עומד על התורה ועל העבודה ועל גמילות חסדים"]
[1204,"הוי מתאבק בעפר רגליהם"]
[1527,"הוי שותה בצמא את דבריהם"]
[1139,"הוי דן את כל האדם לכף זכות"]
[993,"הרחק משכן רע"]
[1641,"אל תתחבר לרשע"]
[2049,"אל תתיאש מן הפורענות"]
[2215,"הוי מתלמידיו של אהרון אוהב שלום ורודף שלום"]
[293,"אם אין אני לי מי לי"]
[1573,"עשה תורתך קבע"]
[959,"אמור מעט ועשה הרבה"]
[1228,"הוימקבל כל אדם בסבר פנים יפות"]
[1555,"לא מצאתי לגוף טוב אלא שתיקה"]
[975,"שואל כענין ומשיב כהלכה"]
[2097,"אומר על ראשון ראשון ועל אחרון אחרון"]
[1981,"עונה על ראשון ראשון ועל אחרון אחרון"]
[2470,"על שלושה דברים העולם עומד על הדין על האמת ועל השלום"]
[802,"הוי זהיר במצוה קלה כבחמורה"]
[3541,"הוי זהיר במצוה קלה כבחמורה שאי אתה יודע מתן שכרן של מצוות"]
[1228,"עין רואה ואוזן שומעת"]
[2626,"עין רואה ואוזן שומעת וכל מעשיך מספר נכתבים"]
[1742,"יפה תלמוד תורה אם דרך ארץ"]
[1430,"כל תורה שאין עמה מלאכה סופה בטלה"]
[1113,"עשה רצונך כרצונו"]
[2570,"עשה רצונך כרצונו כדי שיעשה רצונו כרצונך"]
[1420,"אל תפרוש מן הציבור"]
[1350,"אל תאמין בעצמך עד יום מותך"]
[2205,"אל תדין את חברך עד שתגיע למקומו"]
[1244,"תחזיק חזק עלה קטן שלי"]
[614,"חכמה בינה דעת"]
[741,"יחי אדונינו מורינו ורבינו"]
[1450,"יחי אדונינו מורינו ורבינו מלך המשיח לעולם ועד"]
[1440,"יחי אדוננו מורינו ורבינו מלך המשיח לעולם ועד"]
[1430,"יחי אדוננו מורינו ורבנו מלך המשיח לעולם ועד"]
[14,"חבד"]
[580,"תפילין"]
[498,"אין בור ירא חטא"]
[519,"לא עם הארץ חסיד"]
[482,"לא הביישן למד"]
[384,"לא הקפדן מלמד"]
[1944,"בית מדרשם של שם ועבר"]
[2451,"במקום שאין אנשים השתדל להיות איש"]
[1173,"מרבה תורה מרבה חיים"]
[894,"מרבה ישיבה מרבה חכמה"]
[1069,"מרבה צדקה מרבה שלום"]
[2824,"אם למדת תורה הרבה על תחזיק תורה לעצמך"]
[363,"אויבער חוכם"]
[433,"אויבער חוכעם"]
[2235,"אם למדת תורה הרבה על תחזיק טובה לעצמך"]
[796,"בור סוד שאינו מאבד טיפה"]
[967,"אשרי יולדתו"]
[850,"כמעיין המתגבר"]
[727,"הוי זנב לאריות"]
[2171,"הוי זנב לאריות ואל תהיה ראש לשועלים"]
[2166,"הוי זנב לאריות ואל תהי ראש לשועלים"]
[1308,"התקן עצמך לפרוזדור"]
[2601,"התקן עצמך לפרוזדור כדי שתכנס לטרקלין"]
[782,"חביב אדם שנברא בצלם"]
[1588,"חביבים ישראל שנקראו בנים למקום"]
[1289,"אם אין תורה אין דרך ארץ"]
[452,"אם אין חכמה אין יראה"]
[704,"אם אין בינה אין דעת"]
[922,"אם אין קמח אין תורה"]
[1255,"והיה כעץ שתול על פלגי מים"]
[871,"מושב ליצים לא ישב"]
[317,"איזהו חכם הלומד מכל אדם"]
[979,"מכל מלמדי השכלתי"]
[1196,"איזהו מכובד המכבד את הבריות"]
[1108,"איזהו עשיר השמח בחלקו"]
[898,"הוי רץ למצוה קלה כבחמורה"]
[1091,"מצוה גוררת מצוה"]
[1383,"עבירה גוררת עבירה"]
[1361,"הלומד על מנת ללמד מספקין בידו ללמוד וללמד "]
[3231,"הלומד על מנת לעשות מספקין בידו לשמור ולעשות"]
[2528,"האומר אחטא ואשוב אין מספקין בידו לעשות תשובה"]
[2862,"האומר אחטא ואשוב אחטא ואשוב אין מספקין בידו לעשות תשובה"]
[544,"מסלף דברי חכמים"]
[1313,"על תעשם עטרה להגדל בהם"]
[1562,"לא תעשם קרדום לחפור בהם"]
[721,"קרדום לחפור בהם"]
[776,"יהי כבוד חברך כמורא רבך"]
[1126,"מורא רבך כמורא שמים"]
[892,"הוי גולה למקום תורה"]
[866,"תורה וגדולה במקום אחד"]
[2077,"אוהב את הבריות ומקרבן לתורה"]
[1062,"אוהב שלום ורודף שלום"]
[825,"כלב שנובח לא נושך"]
[1442,"מי שיודע לא אומר ומי שאומר לא יודע"]
[1708,"מי שיודע לא מספר ומי שמספר לא יודע"]
[1381,"מה שרואים מכאן לא רואים משם"]
[636,"הגולם קם על יוצרו"]
[977,"טוען חיטים ועונה בשעורים"]
[494,"לא היו דברים מעולם"]
[334,"לא היה כלום כי אין כלום"]
[1285,"זכור מעשיך הראשונים"]
[751,"מגלגלים זכות על ידי זכאי"]
[927,"מגלגלים זכות על ידי זכאי וחוב על ידי חייב"]
[812,"נוער הגבעות"]
[18,"גטו"]
[868,"מעשים שבכל יום"]
[1116,"מעשה אבות סימן לבנים"]
[1362,"בגלל אבות תושיע בנים"]
[556,"אני גאה להיות יהודי"]
[105,"אני יהודי גאה"]
[524,"תלמוד בבלי"]
[1076,"תלמוד ירושלמי"]
[298,"מעין נובע"]
[820,"מעין המתגבר"]
[1177,"חלילה לך מעשות הדבר הזה"]
[885,"הגוי גם צדיק תהרוג"]
[586,"גמל פורח באויר"]
[384,"אחים לצרה"]
[1069,"אתה חונן לאדם דעת"]
[1812,"רופא כל בשר ומפליא לעשות"]
[839,"רופא כל בשר"]
[395,"נשמה"]
[1024,"אשר בחר בנו מכל העמים"]
[780,"שלא עשני גוי"]
[837,"שלא עשני עבד"]
[1550,"תוכנות גמטריות"]
[1112,"שבת קודש"]
[1030,"לו הייתי רוטשילד"]
[1319,"זה לא פשוט להיות יהודי פשוט"]
[1307,"לא פשוט להיות יהודי פשוט"]
[666,"עדיף מאוחר מלעולם לא"]
[519,"טוב מאוחר מלעולם לא"]
[287,"לעולם לא עוד"]
[673,"לבערך אין ערך"]
[503,"סנדלר הולך יחף"]
[508,"הסנדלר הולך יחף"]
[421,"הנה משיח בא"]
[723,"אין בן דוד אלא בהיסח הדעת"]
[1328,"כי מציון תצא תורה"]
[2181,"כי מציון תצא תורה ודבר ה מירושלים"]
[1682,"שברת שילמת"]
[341,"אדם מועד לעולם"]
[820,"דע לפני מי אתה עומד"]
[1098,"תורה שבעל פה"]
[1335,"תורה שבכתב"]
[1149,"תריג מצות"]
[265,"גיבורי כוח"]
[863,"גיבורי כוח עושי דברו"]
[872,"תורה מגנא ומצלא"]
[1530,"עץ חיים היא למחזיקים בה ותומכיה מאושר"]
[963,"שם עולם אתם לו"]
[1282,"טעות לעולם חוזרת"]
[1596,"מצוות לאו להינות ניתנו"]
[1163,"מצווה בו יותר מבשלוחו"]
[695,"זריזים מקדימים למצווה"]
[1224,"המתחיל במצווה אומרים לו גמור"]
[932,"אין שליח לדבר עבירה"]
[269,"זמן זה כסף"]
[574,"זמן שווה כסף"]
[557,"המחמיר חמור"]
[607," כל המחמיר חמור"]
[1115,"הכנה למצווה יותר מן המצווה"]
[769,"היזק שאינו ניכר"]
[468,"קומה ונעלה ציון"]
[787,"מי שאמר לעולמו די"]
[1844,"מי שאמר לעולמו די יאמר לצרותינו די"]
[258,"כסף זה לא הכל"]
[543,"כסף לא גדל על העצים"]
[153,"אחד בפה ואחד בלב"]
[738,"הכל בחזקת סומין"]
[1134,"דברי הרב ודברי התלמיד"]
[1866,"דברי הרב ודברי התלמיד דברי מי שומעים"]
[1876,"דברי הרב ודברי התלמיד דברי מי שומעין"]
[601,"ירא שמים"]
[629,"הערליכער ייד"]
[1623,"על כנפי נשרים אשא אתכם"]
[1371,"סוף מעשה במחשבה תחילה"]
[645,"דוד מלך ישראל"]
[829,"דוד מלך ישראל חי וקיים"]
[1992,"אם תמיד תהיה כמו כולם אף פעם לא תהיה המנצח"]
[1987,"אם תמיד תהיה כמו כולם אף פעם לא תהיה מנצח"]
[919,"מי שאוכל לבד מת לבד"]
[1327," מי שאוכל עם כולם מת ברעב"]
[2252,"  מי שאוכל לבד מת לבד ומי שאוכל עם כולם מת ברעב"]
[2246,"  מי שאוכל לבד מת לבד מי שאוכל עם כולם מת ברעב"]
[417,"נשמה טובה"]
[1202,"כי לא תשכח מפי זרעו"]
[2083,"כל זמן שהנר דולק אפשר עוד לתקן"]
[2003,"כל זמן שהנר דולק אפשר לתקן"]
[1397,"תכלה שנה וקללותיה"]
[1442,"תחל שנה וברכותיה"]
[107,"הכל לטובה"]
[485,"הכל משמים"]
[223,"אין עוד מלבדו"]
[827,"באה שבת באה מנוחה"]
[2904,"בראתי יצר הרע בראתי תורה תבלין"]
[2940,"בראתי יצר הרע בראתי לו תורה תבלין"]
[406,"המלך בשדה"]
[1362,"שומרים הפקד לעירך כל היום וכל הלילה"]
[2391,"על חומותייך ירושלים הפקדתי שומרים"]
[878,"עולם הפוך ראיתי"]
[1671,"סוף דבר הכל נשמע את האלוקים ירא"]
[3176,"סוף דבר הכל נשמע את האלוקים ירא ואת מצותיו שמור"]
[3318,"סוף דבר הכל נשמע את האלוקים ירא ואת מצותיו שמור כי זה כל האדם"]
[725,"כדאי הוא רבי שמעון"]
[997,"כדאי הוא רבי שמעון לסמוך עליו"]
[1886,"כדאי הוא רבי שמעון לסמוך עליו בשעת הדחק"]
[351,"לג בעומר"]
[154,"לא בחיל ולא בכוח"]
[1926,"לאכול את העוגה ולהשאיר אותה שלימה"]
[2025,"לרקוד על שתי החתונות"]
[1448,"לכל כדור יש כתובת"]
[1668,"הכתובת היתה על הקיר"]
[1402,"משלחי הרגל השור והחמור"]
[1018,"היהלום שבכתר"]
[1045,"הדובדבן שבקצפת"]
[481,"המציל מן הארי"]
[594,"המציל מן הארי ומן הדוב"]
[588,"המציל מן הארי ומן הדב"]
[583,"מציל מן הארי ומן הדב"]
[623,"המציל מזוטו של ים"]
[618,"מציל מזוטו של ים"]
[752,"לכל כלל יש יוצא מן הכלל"]
[734,"חכם שומע פעמיים"]
[1620,"חכם שומע פעמיים טפש אומר פעמיים"]
[824,"אין עשן בלי אש"]
[2067,"ראש וראשון לכל דבר שבקדושה"]
[813,"הדיוט קופץ בראש"]
[1121,"דיה לצרה בשעתה"]
[1552,"כשנגיע לגשר נחצה אותו"]
[2375,"לבנות בית חולים מתחת לגשר "]
[156,"חכמי חלם"]
[718,"זר לא יבין זאת"]
[594,"נתלה באילן גבוה"]
[2903,"בזכות הבל פיהם של תינוקות של בית רבן"]
[2829,"ורק על ידי זכות תינוקות של בית רבן"]
[897,"קראו עצרה וזעקו אל ה"]
[1443,"קדשו צום קראו עצרה וזעקו אל ה"]
[235,"ויזעקו אל ה"]
[602,"ויזעקו אל ה בצר להם"]
[1598,"מי ביקש זאת מידכם רמוס חצרי"]
[762,"אין לנו על מי להישען"]
[1655,"אין לנו על מי להישען אלא על אבינו שבשמים"]
[665,"מלחמת מצווה"]
[1906,"אין שיור רק התורה הזאת"]
[1992,"אין לנו שיור רק התורה הזאת"]
[605,"נס פך השמן"]
[1760,"המטרה מקדשת את האמצעים"]
[1791,"המטרה לא מקדשת את האמצעים"]
[922,"לבערך יש ערך"]
[355,"אל ירך לבבכם"]
[1214,"יוסף מוקיר שבת "]
[471,"נחום איש גם זו"]
[108,"גם זו לטובה "]
[951,"הפח נשבר ואנחנו נמלטנו"]
[324,"עליה וקוץ בה"]
[886,"הצבא צועד על קיבתו "]
[665,"יש בורא עולם"]
[695,"יש בורא לעולם"]
[665,"יש מנהיג לבירה"]
[1536,"השפם נועד להסתיר צחוק מביך"]
[446,"בצל כנפיך יחסיון"]
[1865,"שרב שרה שיר שמח"]
[1111,"יצחק המצחיק צחק צחוק מצחיק"]
[2924,"יצחק המצחיק צחק צחוק מצחיק וכל הצוחקים צחקו מצחוקו המצחיק של יצחק המצחיק"]
[789,"תנו לצהל לנצח"]
[758,"תנו רבנן"]
[559,"כי אתה ה מחסי"]
[560,"כי אתה עמדי"]
[767,"הרגת ביום אפך"]
[736,"הוי רץ למשנה"]
[1691,"הוי רץ למשנה יותר מן הגמרא"]
[567,"אות קין"]
[391,"כאיש אחד בלב אחד"]
[713,"הזהר מוקשים"]
[631,"סכנה מוקשים"]
[1433,"זהירות שדה מוקשים"]
[940,"סכנה שדה מוקשים"]
[2653,"אם אין לך דבר ששוה לך למות למענו אז אין לך בשביל מה לחיות"]
[2722,"ההצלחה היא לעבור מכשלון לכשלון מבלי לאבד את ההתלהבות"]
[2574,"אם המטרה שלך לשרת את עצמך אז אין לך מטרה"]
[1737,"והן קל כביר לא ימאס תפילת רבים"]
[2170,"אם ה לא ישמור עיר שוא שקד שומר"]
[1083,"אם ה לא יבנה בית שוא עמלו בוניו"]
[1091,"אם ה לא יבנה בית שוא עמלו בוניו בו "]
[1742,"חכמת נשים בנתה ביתה"]
[2921,"חכמת נשים בנתה ביתה ואוולת תהרסינה"]
[1024,"ראיתי בני עליה והם מועטים"]
[660,"אם שנים הם אני ובני הם"]
[860,"חרבות הברזל"]
[1378,"מלחמת חרבות הברזל"]
[976,"מזה אף זה אל תמשוך ידך"]
[3456,"סיגריה לא מקצרת את החיים היא מתמצתת אותם"]
[3472,"סיגריה לא מקצרת את החיים אלא מתמצתת אותם"]
[1125,"אני לא ישן הרבה אני ישן לאט"]
[573,"אין ספק מוצמיא מידי ודאי"]
[665,"טובל ושרץ בידו"]
[4245,"אם ישמרו כל עם ישראל שתי שבתות תמימות מיד הם נגאלים"]
[1178,"תחשוב תבין"]
[803,"דיו לבא מן הדין להיות כנידון"]
[551,"אלו ואלו דברי אלוקים חיים"]
[2317,"במקום שבעלי תשובה עומדים אין צדיקים גמוריםן עומדים"]
[1071,"בורא עולם בקנין השלם זה הבנין"]
[1047,"אין לנו ארץ אחרת"]
[1001,"אין לי ארץ אחרת"]
[454,"עם הדומה לחמור"]
[971,"שבת היא מלזעוק"]
[1720,"שבת היא מלזעוק וישועה קרובה לבוא"]
[405,"לבקר בהיכלו"]
[989,"פורש מן הציבור"]
[501,"כל הפוסל במומו פוסל"]
[2007,"גדול יום הגשמים כיום שניתנה בו תורה"]
[993,"עת צרה היא ליעקב"]
[1526,"עת צרה היא ליעקב וממנה יוושע"]
[723,"תאמין בעצמך"]
[1036,"ימלא פי תהילתך"]
[1014,"הצטנן המסכן וקיבל נזלת"]
[809,"גימיטריה לא משנה כלום"]
[1619,"גימטריה זה דבר חסר משמעות"]
[772,"הדרך אל האושר"]
[1595,"קרקפתא דלא מנחא תפילין"]
[755,"קשה אבל שווה"]
[572,"עצלן עובד פעמיים"]
[1292,"פעם שלישית גלידה"]
[265,"אדם לעמל יולד"]
[1543,"מי שטרח בערב שבת"]
[2308,"מי שטרח בערב שבת יאכל בשבת"]
[783,"אי לאו האי יומא כמה יוסף איכא בשוקא"]
[1017,"שלום על ישראל"]
[763,"ישראל מעל המזל"]
[824,"אין עשן בלי אש"]
[310,"הפוך בה והפוך בה דכולא בה"]
[227,"צלם בהיכל"]
[241,"סוף טוב הכול טוב"]
[235,"סוף טוב הכל טוב"]
[2120,"ועשו לי מקדש ושכנתי בתוכם"]
[1770,"ארץ ישראל נקנית ביסורים"]
[1059,"אדם יסודו מעפר וסופו לעפר"]
[943,"נקמה אוכלים כשהיא קרה"]
[2691,"טוב ללכת אל בית האבל מללכת אל בית המשתה"]
[1155,"כמים קרים על נפש עיפה"]
[1165,"כמים קרים על נפש עייפה"]
[671,"אין אורח מכניס אורח"]
[2009,"צרות באות בצרורות"]
[530,"כל המוסיף גורע"]
[728,"משבר האקלים"]
[456,"הגונב מגנב פטור"]
[1401,"אין משיחין בשעת הסעודה"]
[649,"לא עכברא גנב חורא גנב"]
[1108,"חמירא סכנתא מאיסורא"]
[373,"מלך זקן וכסיל"]
[1580,"צדיקים במתתן קרויים חיים"]
[383,"די לחכימא ברמיזא"]
[1526,"יגעת ומצאתה תאמין"]
[1657,"לא יגעת ומצאתה על תאמין"]
[1652,"יגעת ולא מצאת על תאמין"]
[1583,"לא יגעת ולא מצאת תאמין"]
[1086,"אומר ועושה מדבר ומקיים"]
[356,"ויקץ והנה חלום"]
[1105,"צדיק אוכל לשובע נפשו"]
[995,"לא תעמוד על דם רעיך"]
[809,"יהי כבוד חברך חביב עליך כשלך"]
[696,"אל תהי נוח לכעוס"]
[1407,"שוב יום אחד לפני מתתך"]
[1498,"הוי זהרי בגחלתן שלא תכוה"]
[2016,"נשיכתן נשיכת שועל"]
[1762,"עקיצתן עקיצת עקרב"]
[683,"כל דבריהם כגחלי אש"]
[913,"יהי ממון חברך חביב עליך כשלך"]
[1378,"אל תהי רשע בפני עצמך"]
[1618,"דע מה שתשיב לאפיקורס"]
[811,"היום קצר והמלאכה מרובה"]
[852,"הזמן קצר והמלאכה מרובה"]
[541,"לא עליך המלאכה לגמור"]
[984,"לא אתה בן חורין להיבטל ממנה"]
[964,"אי אתה בן חורין להיבטל ממנה"]
[1810,"הוי מתפלל בשלומה של מלכות"]
[2199,"כל המקבל עליו עול תורה מעבירין ממנו עול דרך ארץ"]
[2389,"כל המקבל על עצמו עול תורה מעבירין ממנו עול דרך ארץ"]
[1305,"דרך ארץ קדמה לתורה"]
[2260,"תן לו משלו שאתה ושלך שלו"]
[3507,"כל שיראתו קודמת לחוכמתו חוכמתו מתקיימת"]
[3034,"כל שמעשיו מרובים מחוכתו חוכמתו מתקיימת"]
[1952,"כל שרוח הבריות נוחה הימנו רוח המקום נוחה הימנו"]
[1226,"המלבין פני חבירו ברבים אין לןו חלק לעולם הבא"]
[643,"הוי מקבל כל אדם בשמחה"]
[1228,"הוי מקבל כל אדם בסבר פנים יפות"]
[2411,"כל המקיים את התורה מעוני סופו לקיימה מעושר"]
[2895,"תשובה ומעשים טובים כתריס בפני הפורענות"]
[1596,"מצוות לאו להינות ניתנו"]
[1355,"מצוות צריכות כוונה"]
[1563,"מצוות עשה שהזמן גרמא"]
[1345,"מתנה על מנת להחזיר"]
[1045,"מתנות לאבינוים"]
[935,"ניחא ליה לאיניש דלעביד מצווה בממוניה"]
[1157,"ספק דאורייתא לחומרא"]
[713,"ספק דרבנן לקולא"]
[997,"עביד איניש דינא לנפשיה"]
[1722,"שומר שמסר לשומר"]
[1494,"שוויה אנפשיה חתיכא דאיסורא"]
[1197,"שלוחו של אדם כמותו"]
[1017,"שירת הלוויים"]
[1293,"תעשה ולא מן העשוי"]
[2365,"תדיר ושאינו תדיר תדיר קודם"]
[1249,"לא תיקום ולא תיטור "]
[1030,"לו הייתי רוטשילד"]
[1456,"גדולה תורה יותר מן הכהונה"]
[868,"המכיר את מקומו"]
[494,"שמח בחלקו"]
[863,"מכיר את מקומו"]
[1327,"האומר דבר בשם אומרו מביא גאולה לעולם"]
[444,"אורך ימים בימינה"]
[1530,"עץ חיים היא למחזיקים בה ותומכיה מאושר"]
[992,"בשמאלה עושר וכבוד"]
[1436,"אורך ימים בימינה בשמאלה עושר וכבוד"]
[1442,"אורך ימים בימינה ובשמאלה עושר וכבוד"]
[1530,"עץ חיים היא למחזיקים בה ותומכיה מאושר"]
[1409,"כי אורך ימים ושנות חיים יוסיפו לך"]
[2440,"אמרו עליו על רב יהודה בר עילאי שהיה נוטל בד של הדס בידו ומרקד לפני הכלה"]
[1106,"איני דר אלא במקום תורה"]
[1512,"טוב לי תורת פיך מאלפי זה וכסף"]
[516,"לי הכסף ולי הזהב אמר ה"]
[856,"לי הכסף ולי הזהב אמר השם"]
[1155,"השמים כסעי והארף הדום רגליי"]
[1426,"כה אמר ה השמים כסעי והארף הדום רגליי"]
[698,"מה רבו מעשיך ה"]
[1038,"מה רבו מעשיך השם"]
[1989,"מה רבו מעשיך השם כולם בחכמה עשית"]
[1649,"מה רבו מעשיך ה כולם בחכמה עשית"]
[3418,"רצה הקבה לזכות את ישראל לפיכך הרבה להם תורה ומצוות"]
[1595,"עברי אנוכי אות ה אלוקי השמים אני ירא"]
[1584,"האחיכם יצאו למלחמה ואתם תשבו פה"]
[644,"יהודי לא מגרש יהודי"]
[1283,"שתה וגם לגמלך אשקה"]
[1192,"הם באים בנצחונו של בשר ודם"]
[2036,"הם באים בנצחונו של בשר ודם ואנו באים בנצחונו של מקום"]
[1830,"נוח לכעוס ונוח לרצות יצא שכרו בהפסדו"]
[2525,"קשה לכעוס וקשה לרצות יצא הפסידו השכרו"]
[1763,"מהר לשמוע ומהר לאבד יצא שכרו בהפסדו"]
[2096,"קשה לשמוע וקשה לאבד יצא הפסידו השכרו"]
[2456,"כל מחלוקת שהיא לשם שמים סופה להתקיים"]
[2567,"כל מחלוקת שאינה לשם שמים אין סופה להתקיים"]
[987,"כל המזכה את הרבים אין חטא בא על ידו"]
[2713,"כל המחטיא את הרבים אין מספקים בידו לעשות תשובה"]
[152,"עין טובה"]
[1338," עין טובה רוח נמוכה ונפש שפלה"]
[626,"אוכלין בעולם הזה ונוחלין לעולם הבא"]
[401,"עז פנים לגהינום"]
[1089,"בשת פנים לגן עדן"]
[1171,"בן חמש שנים למקרא"]
[1047,"בן עשר למשנה"]
[1835,"בן שלוש עשרה למצוות"]
[1485,"בן חמש עשרה לתלמוד"]
[1157,"בן שמונה עשרה לחופה"]
[992,"בן עשרים לרדוף"]
[802,"בן שלושים לכוח"]
[472,"בן ארבעים לבינה"]
[655,"בן חמישים לעצה"]
[914,"בן שישים לזיקנה"]
[821,"בן שבעים לשיבה"]
[744,"בן שמונים לגבורה"]
[1216,"בן תשעים לשוח"]
[605,"בן מאה כאילו מת "]
[1171,"בן מאה כאילו מת ועבר ובטל מן העולם"]
[722,"לפום צערא אגרא"]
[1815,"כל העוסק בתורה לשמה זוכה לדברים הרבה"]
[1884,"אוי להם לבריות מעלבונה של תורה"]
[1011,"פת במלח תאכל"]
[1748,"מים במשורה תשתה"]
[2765,"פת במלח תאכל ומים במשורה תשתה"]
[3927,"פת במלח תאכל ומים במשורה תשתה ועל הארץ תישן"]
[686,"אשרך בעולם הזה"]
[943,"אשרך בעולם הזה וטוב לך לעולם הבא"]
[1277,"אל תחמוד כבוד יותר מלמודך"]
[1777,"אל תתאוה לשולחנם של מלכים"]
[2621,"נאמן הוא בעל מלכתך שישלם לך שכר פעולתך"]
[854,"לא תתגודדו"]
[785,"בנים אתם לה אלוקיכם"]
[1125,"בנים אתם להשם אלוקיכם"]
[3554,"עשר תעשר בשביל שתתעשר"]
[323,"אפס כי לא יהיה בך אביון"]
[797,"ושמחת בחגיך"]
[1149,"ולא יראה את פני ה ריקם"]
[754,"ולא יראו פניי ריקם"]
[748,"לא יראו פניי ריקם"]
[1143,"לא יראה את פני ה ריקם"]
[1483,"לא יראה את פני השם ריקם"]
[2568,"שופטים ושוטרים תתן לך בכל שעריך"]
[1316,"שום תשים עליך מלך"]
[847,"מי האיש הירא ורך הלבב"]
[1684,"מי האיש הירא ורך הלבבה ילך וישוב לביתו"]
[1523,"שלח תשלח את האם"]
[2595,"שלח תשלח את האם ואת הבנים תקח לך"]
[1893,"מוצא שפתיך תשמור"]
[1546,"וזכרת כי עבד היית במצרים"]
[1800,"זכור את אשר עשה לך עמלק"]
[1415,"ארור מכה רעהו בסתר"]
[665,"ברוך אתה בבואך"]
[1147,"ברוך אתה בצאתך"]
[916,"ברוך אתה בעיר"]
[1867,"ברוך אתה בעיר וברוך אתה בשדה"]
[945,"ברוך אתה בשדה"]
[1359,"הנסתרות לה אלוקינו"]
[2099,"הנסתרות לה אלוקינו והנגלות לנו ולבנינו"]
[745,"אם יהיה נדחך בקצה השמים"]
[1352,"אם יהיה נדחך בקצה השמים משם יקבצך ה"]
[1692,"אם יהיה נדחך בקצה השמים משם יקבצך השם"]
[2216,"אם יהיה נדחך בקצה השמים משם יקבצך השם ומשם יקחך"]
[439,"לא בשמים היא"]
[868,"לא בשמים היא ולא מעבר לים"]
[2271,"וספרתם לכם ממחרת השבת"]
[795,"ורדפו מכם חמשה מאה"]
[667,"ומאה מכם רבבה ירדופו"]
[661,"מאה מכם רבבה ירדופו"]
[789,"רדפו מכם חמשה מאה"]
[439,"לא מעבר לים היא"]
[730,"כי קרוב עליך הדבר מאוד"]
[1722,"כי קרוב עליך הדבר מאוד ובפיך ובלבבך לעשותו"]
[686,"ובחרת בחיים"]
[1583,"ואנוכי הסתר הסתיר פניי "]
[1658,"ואנוכי הסתר הסתיר פניי ביום ההוא "]
[2333,"ועתה כתבו לכם את השירה הזאת"]
[783,"יערוף כמטר לקחי"]
[1930,"יערוף כמטר לקחי תזל כטל אמרתי"]
[1446,"כנשר יעיר קינו על גוזליו ירחם"]
[460,"איכה ירדוף אחד אלף"]
[1211,"איכה ירדוף אחד אלף ושנים יניסו רבבה"]
[1104,"מחוץ תשכל חרב"]
[1468,"מחוץ תשכל חרב ומחדרים אימה"]
[913,"ונסתם ואין רודף"]
[874,"ותזרני חיל למלחמה"]
[1199,"תורהנ צווה לנו משה"]
[2480,"תורהנ צווה לנו משה מורשה קהילת יעקה"]
[584,"ידיד ה ישכון לבטח עליו"]
[924,"ידיד השם ישכון לבטח עליו"]
[1093,"דן גור אריה יזנק מן הבשן"]
[479,"דן גור אריה "]
[1862,"שמח זבולון בצאתך ויששכר באוהלך"]
[962,"שמח זבולון בצאתך "]
[433,"כלביא שכן"]
[1312,"כלביא שכן וטרף זרוע אף קודקוד"]
[873,"טרף זרוע אף קודקוד"]
[1222,"לא קם נביא עוד בישראל כמשה"]
[293,"דור המבול"]
[800,"קורח ועדתו"]
[2048,"וכל בית ישראל יבכו את השריפה"]
[3134,"וכל בית ישראל יבכו את השריפה אשר שרף ה"]
[3474,"וכל בית ישראל יבכו את השריפה אשר שרף השם"]
[338,"דור ההפלגה"]
[2074,"בסוכות תשבו שבעת ימים"]
[674,"ולקחתם לכם"]
[1333,"ולקחתם לכם פרי עץ הדר"]
[659,"פרי עץ הדר"]
[1371,"וישן מפני חדש תוציאו"]
[1218,"באו ורשו את הארץ"]
[2655,"באו ורשו את הארץ אשר נשבע ה לאבותיכם"]
[1296,"לא אוכל לבדי שאת אתכם"]
[893,"והנכם היום ככוכבי השמים לרוב"]
[900,"ה אלוקיכם יוסף אליכם ככם אלף פעמים"]
[1240,"השם אלוקיכם יוסף אליכם ככם אלף פעמים"]
[1137,"לא תגורו מפני איש"]
[638,"ה אלוקיכם ההולך עמכם הוא ילחם לכם"]
[1520,"ה אלוקיכם ההולך עמכם הוא ילחם לכם להושיע אתכם"]
[526,"עוג מלך הבשן"]
[1558,"ומי גוי גדול אשר לו חוקים ומשפטים צדיקים"]
[390,"שמן"]
[432,"רב פעלים"]
[743,"איש רב פעלים"]
[330,"חכם הרזים"]
[380,"מדיק יסוד עולם"]
[353,"שמחה"]
[1287,"קול ששון וקול שמחה"]
[791,"קול חתן וקול כלה"]
[1926,"עוד ישמע בערי יהודה ובחוצות ירושלים"]
[620,"ענבי הגפן בענפי הגפן"]
[1460,"ענבי הגפן בענפי הגפן דבר נאה ומתקבל"]
[627,"עשה לך רב"]
[900,"הבורח מן הכבוד הכבוד רודף אחריו"]
[850,"הבורח מהכבוד הכבוד רודף אחריו"]
[1085,"מעט מן האור דוחה הרבה מן החושך"]
[432,"אין חכם כבעל הנסיון"]
[1385,"מי האיש החפץ חיים אוהב ימים לראות טוב"]
[3824,"מי האיש החפץ חיים אוהב ימים לראות טוב נצור לשונך מרע ושפתליך מדבר מרמה"]
[1066,"האחד בא לגור וישפוט שפוט"]
[722,"לפום צערא אגרא"]
[1352,"מאן דשני עלך לחברך לא תעביד"]
[673,"מלך פורץ גדר"]
[1739,"מלך פורץ גדר לעשות לו דרך"]
[1976,"מלך פורץ גדר לעשות לו דרך ואין ממחין בידו"]
[734,"כמים פנים אל פנים כן לב האדם אל האדם"]
[930,"הרודף אחר הכבוד הכבוד בורח ממנו"]
[783,"רצונו של אדם זהו כבודו"]
[100,"דא ביה כולה ביה "]
[219,"דדא ביה כולא ביה דלא דא ביה מה ביה"]
[1006,"דדא ביה כולא ביה דלא דא ביה מה ביה דא קני כולה קני דא לא קני מה קני"]
[1586,"מצוות לאו להנות ניתנו"]
[1355,"מצוות צריכות כוונה"]
[1563,"מצוות עשה שהזמן גרמא"]
[1981,"מתנה על מה שכתוב בתורה"]
[1345,"מתנה על מנת להחזיר"]
[1045,"מתנות לאביונים"]
[935,"ניחא ליה לאיניש דלעביד מצווה בממוניה"]
[1157,"ספק דאורייתא לחומרא"]
[997,"עביד איניש דינא לנפשיה"]
[1722,"שומר שמסר לשומר"]
[1498,"שוויה אנפשיה חתיכה דאיסורא"]
[1197,"שלוחו של אדם כמותו"]
[1203,"תעשה ולא העשוי"]
[2365,"תדיר ושאינו תדיר תדיר קודם"]
[1249,"לא תיקום ולא תיטור"]
[1945,"טוב פת חרבה ונחת בה מבית מלא זבחי ריב"]
[1183,"טוב פת חרבה ונחת בה"]
[392,"וילכו אחרי ההבל ויהבלו"]
[1770,"בנים גדלתי ורוממתי והם פשעו בי"]
[1076,"ציון במשפט תפדה"]
[1600,"ציון במשפט תפדה ושביה בצדקה"]
[691,"קול קורא במדבר"]
[2484,"הביטו אל צור חוצבתם ואל מוצבת בור נוקרתם"]
[1269,"קול צופייך נשעאו קול יחדיו ירננו"]
[983,"כי עין בעין יראו בשוה ה ציון"]
[1323,"כי עין בעין יראו בשוה השם ציון"]
[393,"והלכו גויים לאורך"]
[868,"והלכו גויים לאורך ומלכים לנוגה זרחך"]
[1833,"לא ישמע עוד חמס בארצך שוד ושבר בגבולך"]
[1169,"לא יהיה לך עוד השמש לאור יומם"]
[486,"ועמך כולם צדיקים"]
[1469,"ועמך כולם צדיקים לעולם ירשו ארץ"]
[335,"הקטן לאלף יהיה"]
[971,"הקטן לאלף יהיה והצעיר לגוי עצום"]
[917,"אני ה בעתה אחישנה"]
[1224,"שוש אשיש בה"]
[1564,"שוש אשיש בהשם"]
[2586,"שוש אשיש בהשם תגל נפשי באלוקי"]
[2246,"שוש אשיש בה תגל נפשי באלוקי"]
[691,"למען ציון לא אחשה"]
[1930,"למען ציון לא אחשה ולמען ירושלים לא אשקוט"]
[433,"לא יאמר לך עוד אזובה"]
[1245,"לא יאמר לך עוד אזובה ולארצך עוד שממה"]
[1178,"עברו עברו בשערים"]
[330,"כי יום נקם בליבי"]
[820,"כשושנה בין החוחים"]
[167,"דודי לי ואני לו"]
[1399,"אמרתי אעלה בתמר"]
[748,"אעלה בתמר"]
[1364,"עם נבר תתבר"]
[1064,"עם חסיד תתחסד"]
[1480,"עם תמים תתמם"]
[1701,"עם גיבור תמים תתמם"]
[572,"הלוא זה אוד מצול מאש"]
[518,"אוד מצול מאש"]
[1510,"לא ימוש ספר התורה הזה מפיך"]
[2119,"לא ימוש ספר התורה הזה מפיך והגית בו יומם ולילה"]
[609,"והגית בו יומם ולילה"]
[1774,"והסרתי את לב האבן מבשרכם"]
[3264,"והסרתי את לב האבן מבשרכם ונתתי לכם לב בשר"]
[1726,"וזרחה לכם יראי שמי שמש צדקה"]
[1102,"הנה אנוכי שולח לכם את אליהו הנביא"]
[966,"והשיב לב אבות על בנים"]
[1655,"והשיב לב אבות על בנים ולב בנים על אבותם"]
[924,"הלנו אתה אם לצרינו"]
[1383,"ומרדכי לא יכרע ולא ישתחווה"]
[1249,"עד חצי המלכות וינתן לך"]
[1459,"עד חצי המלכות ותעש"]
[1863,"ככה יעשה לאיש אשר המלך חפץ ביקרו"]
[2074,"ליהודים היתה אורה ושמחה וששון ויקר"]
[2329,"לסוסתי ברכבי פרעה דמיתיך רעיתי "]
[2323,"לססתי ברכבי פרעה דמיתיך רעיתי "]
[489,"גאון שגעון"]
[249,"אחלה גבר"]
[426,"עם הנצח לא מפחד"]
[922,"עם הנצח לא מפחד מדרך ארוכה"]
[3570,"אל תראוני שאני שחרחורת ששדפני השמש"]
[2181,"אל תראוני שאני שחרחורת"]
[235,"קול דודי הנה זה בא"]
[1503,"קול דודי הנה זה בא מדלג על ההרים מקפץ על הגבהות"]
[754,"אני ישנה וליבי ער"]
[764,"יש דין ויש דיין"]
[1967,"כל המעביר על מדותיו מעבירים לו על כל פשעיו"]
[992,"נמצא חן ושכל טוב בעיני אלוקים ואדם"]
[1719,"אשר ברא ששון ושמחה"]
[2238,"אשר ברא ששון ושמחה חתן וכלה"]
[1297,"בעל הבית השתגע"]
[389,"מה לך נרדם"]
[645,"חכמה בגויים תאמין"]
[1327,"פורץ גדר ישכנו נחש"]
[1273,"צדיקים הקבה ממלא שנותם"]
[1288,"צדיקים הקבה ממלא שנותיהם"]
[1831,"צדיקים הקדוש ברוך הוא ממלא שנותיהם"]
[1816,"צדיקים הקדוש ברוך הוא ממלא שנותם"]
[1598,"שינה בשבת תענוג"]
[361,"האוכל דג ביום דג ניצל מדג"]
[502,"אגוטן שאבעס"]
[968,"זה היום עשה ה נגילה ונשמחה בו"]
[1308,"זה היום עשה השם נגילה ונשמחה בו"]
[961,"הבא להרגך השקם להורגו"]
[1098,"הקם להרגך השקם להורגו"]
[2436,"המפסיק ממשנתו מאכילים אותו גחלי רתמים"]
[1834,"לעולם תהא שמאל דוחה וימין מקרבת"]
[819,"יין ישמח לבב אנוש"]
[1026,"אין שמחה אלא בבשר ויין"]
[103,"גאון גדול"]
[175,"גאון הגאונים"]
[702,"כל דכפין ייתא ויאכל"]
[1251,"גימטריא לא משנה שום דבר"]
[1552,"דבר שיש לו מתירים"]
[631,"דינא דמלכותא דינא "]
[1900,"הואיל ואישתרי אישתרי"]
[582,"הודאת בעל דין"]
[815,"היזק ראיה שמיה היזק"]
[852,"היזק ראיה לאו שמיה היזק"]
[1132,"המבזבז אל יבזבז יותר מחומש"]
[755,"המוציא מחבירו עליו הראיה"]
[1668,"הפה שאסר הוא הפה שהתיר"]
[658,"הרהור כדיבור"]
[445,"טועה בדבר מצווה"]
[1796,"יש כוח ביד חכמים לעקור דבר מן התורה"]
[820,"כופין על מדת סדום"]
[1067,"כיון שהגיד שוב אינו חוזר ומגיד"]
[1374,"כל הפטור מדבר ועושהו נקרא הדיוט"]
[529,"לא תחנם"]
[373,"לא ילבש"]
[1654,"לא ילבש גבר שמלת אשה"]
[1058,"ואבתם את הגר"]
[854,"לא תתגודדו"]
[1007,"לאו הניתק לעשה"]
[1723,"לפני עור לא תתן מכשול"]
[1225,"לפנים משורת הדין"]
[698,"מוטב יהיו שוגגים ועל יהיו מזידים"]
[602,"מעלים בקודש"]
[1391,"מעלים בקודש ואין מורידים בקודש"]
[998,"מצווה לקיים דברי המת"]
[449,"מצווה הבאה בעבירה"]
[922,"עוסק במצווה פטור מן המצווה"]
[695,"עני המהפך בחררה"]
[1204,"עשה דוחה לא תעשה"]
[967,"ערבים כל ישראל זה לזה"]
[1384,"פיקוח נפש דוחה כל התורה כולה"]
[1785,"פיקוח נפש דוחה את כל התורה כולה"]
[523,"קים ליה בדרבה מיניה"]
[341,"אדם מועד לעולם"]
[680,"אדם קרוב אצל עצמו"]
[1272,"אין אדם משים עצמו רשע"]
[1282,"אין אדם אוסר דבר שאינו שלו"]
[1017,"אין אדם מקנה דבר שלא בא לעולם"]
[991,"אין אדם פורע תוך זמנו"]
[2911,"אין התלורה מתקיימת אלא במיט שממית עצמו עליה"]
[1111,"חזקה אין אדם פורע תוך זמנו"]
[440,"אונס ביום אחרון"]
[1131,"אין מערבים שמחה בשמחה"]
[533,"אין ספק מוציא מידי ודאי"]
[1059,"אין אומרים לאדם חטא בכדי שיזכה חברך"]
[1057,"אין אומרים לאדם חטא כדי שיזכה חברך"]
[1941,"אין עושים מצוות חבילות חבילות"]
[945,"לאפרושי מאיסורא"]
[677,"אף הם היו באותו הנס"]
[696,"אין עונשים מן הדין"]
[1748,"ובאו העובדים בארץ אשור והנדחים בארץ מצרים"]
[900,"אל תרא עבדי יעקב"]
[2286,"אל תרא עבדי יעקב ואל תחת ישראל"]
[1380,"אל תחת ישראל"]
[187,"כן יאבדו כל אויבך ה"]
[527,"כן יאבדו כל אויבך השם"]
[1805,"ואהביו כצאת השמש בגבורתו"]
[1601,"פלא יועץ קל גיבור אבי עד שר שלום"]
[1627,"קנאת סופרים תרבה חכמה"]
[2556,"אם לא בריתי יומם ולילה חוקת שמים לא שמתי"]
[1817,"ושכנתי בתוך בני ישראל"]
[2078,"עם זו יצרתי לי תהילתי יספר"]
[1632,"אנכי אנכי הוא מוחה פשעיך למעני וחטאתיך לא אזכור"]
[913,"אנכי אנכי הוא מוחה פשעיך למעני"]
[713,"אנכי אנכי הוא מוחה פשעיך"]
[1138,"הזורעים בדמעה ברינה יקצורו"]
[1766,"חחיב אדם לברך על הרעה כשם שהוא מברך על הטובה"]
[1409,"יש קונה עולמו בשעה אחת"]
[1454,"חלומות עלולים להתגשם"]
[2649,"בור ששתית ממנו מים אל תזרוק בו אבן"]
[1278,"שב ואל תעשה עדיף"]
[473,"מלח על הפצעים"]
[679,"לעגל פינות"]
[689,"מעגל פינות"]
[584,"מה שלא הולך בכח הולך במוח"]
[682,"לא הכל שחור לבן"]
[394,"דע מה למעלה ממך"]
[1178,"שופרא דשופרא"]
[848,"שבע יפול צדיק וקם"]
[1642,"יציאת צדיק עושה רושם"]
[1360,"מאיגרא רמא לבירא עמיקתא"]
[618,"טול קורה מבין עיניך"]
[659,"שני צדדים למטבע"]
[1678,"אין לך בין חורין אלא מי שעוסק בתורה"]
[1681,"הנה לא ינום ולא ישן שומר ישראל"]
[1485,"כי הוא הנותן לך כח לעשות חיל"]
[1270,"חכמת אדם תאיר פניו"]
[1946,"כל העוסק בתורה בלילה חוט של חסד משוך עליו ביום"]
[979,"על טעם וריח אין להתווכח"]
[1270,"ותלמוד תורה כנגד כולם"]
[1164,"עוף השמים הוליך את הקול"]
[1152,"יש מקום בלב יש מקום לכולם"]
[238,"הלב הוא לא מחסן"]
[566,"להיות ולא לחדול"]
[536,"להיות או לחדול"]
[1396,"הסתכלת היום לשמים"]
[572,"פני הדור כפני הכלב"]
[683,"חורבן הבית"]
[755,"זה לא משנה מה הגמטריה"]
[1216,"אל תתייחס לגמטריה"]
[1202,"אל תאמין בגמטריות"]
[1218,"אל תאמינו בגימטריות"]
[1623,"אל תתייחסו לגמטריות"]
[799,"גימטריה לא משנה כלום"]
[2315,"למה אתה חושב שגימטריה מסמנת משהו"]
[994,"גימטריה לא מסמנת כלום"]
[1450,"גימטריה לא מסמנת שום דבר"]
[1062,"גימטריה זה לא מסמן שום דבר"]
[1119,"גימטריה זה לא אומר שום דבר"]
[1507,"גימטריה לא אומרת שום דבר"]
[1560,"אין לגמטריה שום משמעות"]
[1264,"אין לגמטריה כל משמעות"]
[1462,"תפסיקו להאמין בגמטריות"]
[1456," תפסיק להאמין בגמטריות"]
[1202,"אל תאמין בגמטריות"]
[1208,"אל תאמינו בגמטריות"]
[1321,"אל תקבע דברים על פי הגמטריה"]
[1327,"אל תקבעו דברים על פי הגמטריה"]
[1202,"אל תקבעו דברים בגלל הגמטריה"]
[1196,"אל תקבע דברים בגלל הגמטריה"]
[1021,"דברים לא נקבעים על פי הגמטריה"]
[1016,"דברים לא נקבעים על פי גמטריה"]
[1246,"אל תקבע דברים לפי גמטריה"]
[1252,"אל תקבעו דברים לפי גמטריה"]
[1956,"למה נראה לך שגימטריה אומרת משהו "]
[2786,"האם אתה באמת חושב שגימטריה אומרת משהו"]
[2738,"האם אתה באמת סבור שגימטריה אומרת משהו"]
[2295,"האם אתה סבור שגימטריה אומרת משהו"]
[2343,"האם אתה חושב שגימטריה אומרת משהו"]
[2541,"האם אתה חושב שלגימטריה יש משמעות"]
[2984,"האם אתה באמת חושב שלגימטריה יש משמעות"]
[1519,"האם לגימטריה יש משמעות"]
[1962,"האם באמת לגימטריה יש משמעות"]
[1524,"ממתי קובעים דברים לפי מספרים"]
[1594,"ממתי קובעים דברים על פי מספרים"]
[1638,"ממתי דברים נקבעים על פי מספרים"]
[1568,"ממתי דברים נקבעים לפי מספרים"]
[811,"הפעם לא הלך לך אולי בגמטריה קטנה"]
[1326,"הפעם לא הלך לך תנסה אולי בגמטריה קטנה"]
[1534,"הפעם לא הלך לך תנסה אולי בגמטריה קטנה או עם הכולל"]
[1019,"הפעם לא הלך לך אולי בגמטריה קטנה או עם הכולל"]
[971,"אופס לא הלך לך אולי בגמטריה קטנה או עם הכולל"]
[635,"אופס לא הלך לך אולי עם הכולל זה יעבוד"]
[683,"הפעם לא הלך לך אולי עם הכולל זה יעבוד"]
[1992,"הפעם לא הלך לך אולי נסה למצוא את הקרוב ביותר"]
[2392,"הפעם לא הלך לך אולי תנסה למצוא את הקרוב ביותר"]
[503,"לא יוצא בגמטריה כלום"]
[1131,"דע מה שתשיב"]
[1304,"שאם ישאלך אדם אל תגמגמם"]
[1091,"גמטריה לא אומרת לך כלום"]
[1739,"גמטריה לא באמת אומרת משהו"]
[1744,"הגמטריה לא באמת אומרת משהו"]
[1782,"אל תתיחס לגמטריות למינהם"]
[1767,"אל תתיחס לכל מיני גמטריות"]
[1632,"כאילו שגמטריה אומרת משהו"]
[1302,"כאילו שגמטריה שווה משהו"]
[2042,"למה אתה חושב שגימטריה שווה משהו"]
[61,"כוביד י\"ט"]
[1056,"הגימטריה לא אומרת כלום"]
[1066,"לצור על פי צלוחיתו"]
[845,"כחרס הנשבר"]
[742,"צדיק באמונתו יחיה"]
[1030,"וזאת התורה"]
[2245,"משה אמת ותורתו אמת"]
[533,"מחר יהיה מאוחר"]
[1001,"חמור נושא ספרים"]
[388,"זקן ואינו לפי כבודו"]
[1170,"אחד משישים במיתה"]
[1132,"והשינה משובחת"]

{"sheet":"גיליון4","index":3,"n_rows":0,"n_cols":0,"rows_kept":0,"cut":false,"hidden":false,"merged":[]}